Workbook

Sheet Cover
A1: Genesys Database Sizing Estimator 8.x Worksheets
A3: Note: This Database Size Estimator provides a range of expected database sizes for various Genesys products. Click the tabs at the bottom to access a product.
A5: The information contained herein is proprietary and confidential and cannot be disclosed or duplicated without the prior written consent of Genesys Telecommunications Laboratories, Inc. Copyright © 2000–2016 Genesys Telecommunications Laboratories, Inc. All rights reserved.
A7: About Genesys: Genesys is the world's leading provider of customer service and contact center software—with more than 4,000 customers in 80 countries. Drawing on its more than 20 years of customer service innovation and experience, Genesys is uniquely positioned to help companies bring their people, insights and customer channels together to effectively drive today’s customer conversation. Genesys software directs more than 100 million interactions every day, maximizing the value of customer engagement and differentiating the experience by driving personalization and multi-channel customer service—and extending customer service across the enterprise to optimize processes and the performance of customer-facing employees. Go to www.genesyslab.com for more information. Each product has its own documentation for online viewing at the Genesys Customer Care website or on the Documentation Library DVD, which is available from Genesys upon request. For more information, contact your sales representative.
A8: Notice: Although reasonable effort is made to ensure that the information in this document is complete and accurate at the time of release, Genesys Telecommunications Laboratories, Inc., cannot assume responsibility for any existing errors. Changes and/or corrections to the information contained in this document may be incorporated in future versions. Your Responsibility for Your System’s Security: You are responsible for the security of your system. Product administration to prevent unauthorized use is your responsibility. Your system administrator should read all documents provided with this product to fully understand the features available that reduce your risk of incurring charges for unlicensed use of Genesys products.
A9: Trademarks: Genesys and the Genesys logo are registered trademarks of Genesys Telecommunications Laboratories, Inc. All other company names and logos may be trademarks or registered trademarks of their respective holders. The Crystal monospace font is used by permission of Software Renovation Corporation, www.SoftwareRenovation.com.
A10: Technical Support from VARs: If you have purchased support from a value-added reseller (VAR), please contact the VAR for technical support.
A11: Ordering and Licensing Information: Complete information on ordering and licensing Genesys products can be found in the Genesys Licensing Guide.
A13: Document Version: 8g_DBSizing_03-2016_v8.0.001.12

Sheet Contact
B1: Customer Care Contact Information
B3: Technical Support from VARs If you have purchased support from a value-added reseller (VAR), please contact the VAR for technical support.
B4: Customer Care from Genesys If you have purchased support directly from Genesys, please contact Genesys Customer Care (http://www.genesys.com/customer-care/contact-us). Before contacting Customer Care, please refer to the Genesys Care Support Guide for On-Premises (http://www.genesys.com/customer-care/support-processes) for complete contact information and procedures.

Sheet ConfigServer
A1: Configuration Database 8.0
A2: Use this spreadsheet to estimate the size of the Configuration Database for your environment. Some examples are provided. 1. Change the values for your environment. 2. Your estimated database size appears in the last row: Config DB Size (MB)
A4: Configuration Data Objects
A6: Environment | B6: Number
A7: Hosts | B7: 2
A8: Alarm conditions | B8: 10
A9: Application Templates | B9: 35
A10: Applications | B10: 1,000
A11: Services | B11: 2
A12: Tenants | B12: 1
A13: Time Zone | B13: 1
A14: Scripts | B14: 4
A15: Access Groups | B15: 5
A16: Folders | B16: 12
A17: Enumerators | B17: 21
A18: Enumerators values (Total for all Enumerators) | B18: 64
A19: CTI | B19: Number
A20: Switching Offices | B20: 2
A21: Physical Switches | B21: 2
A22: Persons | B22: 3,000
A23: Agent Groups | B23: 100
A24: Agent Logins | B24: 3,000
A25: Places | B25: 2,000
A26: Place Groups | B26: 100
A27: DNs | B27: 2,100
A28: DN Groups | B28: 100
A29: Voice Prompts | B29: 20
A30: IVR Ports | B30: 20
A31: IVRs | B31: 20
A32: Outbound | B32: Number
A33: Calling Lists | B33: 5
A34: Campaigns | B34: 5
A35: Campaign Groups | B35: 1
A36: Treatments | B36: 2
A37: Table Access | B37: 1
A38: Filters | B38: 20
A39: Routing | B39: Number
A40: Skills | B40: 1,000
A41: Transactions | B41: 100
A42: Objective Tables | B42: 1
A43: Statistical Days | B43: 5
A44: Statistical Tables | B44: 5
A45: Action Codes | B45: 50
A46: GVP | B46: Number
A47: GVP Resellers
A48: GVP Customers
A49: GVP IVR Profiles
A50: Scheduled Tasks
A52: Config DB Size (MB) | B52: =SUM(B7:B18,B20:B31,B33:B38,B40:B45,B47:B50)*10*1024/(1024*1024) -> 125.16

Sheet DataMart
B1: Select DB from drop-down | C1: Record Length
A2: ODS and DataMart 8.0 | B2: Sybase | C2: =VLOOKUP(B2,H3:I6,2,FALSE) -> 83 | H2: Database | I2: Record Length
A3: Use this spreadsheet to estimate the size of the ODS and DataMart Database for your environment. Some examples are provided. 1. Select the database from the drop-down menu in the second column. 2. Change the values for your environment. 3. Your estimated database sizes appear in the last rows. | H3: Oracle | I3: 42
H4: MS SQLServer | I4: 66
A5: Layouts | H5: IBM DB2 | I5: 58
H6: Sybase | I6: 83
A7: Outbound Contact Layout Templates | B7: Number | C7: Statistics
A8: CALL_LS | B8: 1 | C8: 24
A9: CMP | B9: 1 | C9: 25
A10: CMP_CALL_L | B10: 1 | C10: 24
A11: CMP_GR | B11: 25 | C11: 7
A12: GROFPLS | B12: 25 | C12: 28
A13: GROFQUEUES | B13: 5 | C13: 11
A14: O_AGENT | B14: 500 | C14: 32
A15: O_AGENT_GR | B15: 50 | C15: 32
A16: PLACE | B16: 250 | C16: 28
A17: QUEUE | B17: 5 | C17: 11
A18: ROUTEPOINT | B18: 25 | C18: 11
A19: VCB Layout Templates | B19: Number | C19: Statistics
A20: VCB_GQ_EV | B20: 5 | C20: 9
A21: VCB_GQUEUE | B21: 5 | C21: 12
A22: VCB_Q_EV | B22: 10 | C22: 9
A23: VCB_QUEUE | B23: 10 | C23: 12
A24: VCB_RP | B24: 50 | C24: 12
A25: VCB_TENANT | B25: 2 | C25: 21
A26: Enterprise Routing Layout Templates | B26: Number | C26: Statistics
A27: AGENT | B27: 1,000 | C27: 28
A28: GROFAGS | B28: 100 | C28: 28
A29: GROFPLS | B29: 25 | C29: 28
A30: GROQUEUES | B30: 5 | C30: 11
A31: PLACE | B31: 500 | C31: 28
A32: QUEUE | B32: 10 | C32: 11
A33: ROUTEPOINT | B33: 50 | C33: 11
A34: Multimedia Layout Templates | B34: Number | C34: Statistics
A35: ERMS
A36: EMAIL_AGENT | B36: 1,000 | C36: 11
A37: EMAIL_GAGENT | B37: 100 | C37: 11
A38: EMAIL_GPLACE | B38: 25 | C38: 11
A39: EMAIL_IQUEUE | B39: 50 | C39: 5
A40: EMAIL_PLACE | B40: 500 | C40: 11
A41: EMAIL_TENANT | B41: 2 | C41: 11
A42: Web Media
A43: CHAT_A | B43: 1,000 | C43: 13
A44: CHAT_GA | B44: 100 | C44: 13
A45: CHAT_GH | B45: 3 | C45: 7
A46: CHAT_GP | B46: 25 | C46: 13
A47: CHAT_P | B47: 500 | C47: 13
A48: Voice
A49: VOICE_A | B49: 1,000 | C49: 22
A50: VOICE_AG | B50: 100 | C50: 27
A51: VOICE_GQ | B51: 5 | C51: 13
A52: VOICE_P | B52: 500 | C52: 22
A53: VOICE_PG | B53: 25 | C53: 27
A54: VOICE_Q | B54: 10 | C54: 13
A55: VOICE_RP | B55: 50 | C55: 13
A56: VOICE_T | B56: 2 | C56: 16
A58: Total Requests Number | B58: =SUM(B8:B18*C8:C18,B20:B25*C20:C25,B27:B33*C27:C33,B36:B41*C36:C41,B43:B47*C43:C47,B49:B56*C49:C56) -> 149,650
A60: Collection Time Profiles per Day | B60: 96
A62: ODS Lifetime (Days) | B62: 5
A64: ODS Size (GB) | B64: =B58*C2*B60*(B62+2)/1073741824 -> 7.77
A66: Datamart Lifetime (Days) | B66: 365
A68: DataMart Size (GB) | B68: =(B58*B60*B66*8+20000)/1073741824 -> 39.07

Sheet GIM
A1: Genesys Info Mart Database Size Estimator
A3: This Database Size Estimator requires a separate spreadsheet. Download the spreadsheet using the link provided below.
B4: GIM 8.1 Database Size Estimator
A6: Note: The estimator can also be accessed from the Genesys Info Mart documentation landing page using the link provided below.
B7: https://docs.genesys.com/Documentation/GIM

Sheet GKC
A1: Genesys Knowledge Center Sizing Estimator
A3: This Database Size Estimator requires a separate spreadsheet. Download the spreadsheet using the link provided below.
B4: Genesys Knowledge Center Sizing Workbook
A6: Note: The estimator can also be accessed from the Genesys Knowleddge Center documentation landing page using the link provided below.
B7: https://docs.genesys.com/Documentation/KC

Sheet GVP
A1: GVP
A2: Required Estimates | C2: Description | G2: Component | I2: Data Type | J2: Percent of Total | K2: Required Disk Usage (MB) | L2: Sum per Datatype per Component (GB) | M2: Sum per Component (GB) | N2: Sum (GB) + Overhead
A3: # of DN | B3: 30 | G3: Resource Manager | H3: CDR | I3: CDR | J3: =(K3/1024)/$N$3 -> 33.776% | K3: =((1300 + 1430*B13)*B12 *(C30+1)) / 1048576 -> 1,882,790.222168 | L3: =K3 / 1024 -> 1,838.662326 | M3: =L3 + L4 -> 1,839.174288 | N3: =M3+M10+M34+M42 + 0.5 -> 5,443.692863
A4: # of IVR Profiles | B4: 30 | H4: Operational Reporting | I4: OR (5 minutes) | J4: =(K4/1024)/$N$3 -> 0.007% | K4: =300 *(B3 + B4 + B5 + B9 + B10 + 1) * B6 * 2 * 1440 * (C31+1) / 1048576 -> 415.283203 | L4: =(K4 + K5 + K6 + K7 + K8+ K9) / 1024 -> 0.511961
A5: # of Tenants | B5: 2 | C5: Include number of Sub-Tenants | I5: OR (30 minutes) | J5: 0.001% | K5: =300 * (B3 + B4 + B5 + B9 + B10 + 1) * B6 * 2* 48 *(C32+1) / 1048576 -> 55.371094
A6: # of RM | B6: 4 | C6: Number of ALL ResourceManager applications. HA-pairs count as 2 | I6: OR (hourly) | J6: 0.000% | K6: =300 * (B3 + B4 + B5 + B9 + B10 + 1)* B6 * 2 * 24 * (C33+1) / 1048576 -> 27.685547
A7: # of MCPs | B7: 8 | C7: Number of Media Control Platform Applications | I7: OR (daily) | J7: 0.000% | K7: =300 * (B3 + B4 + B5 + B9 + B10 +1) *B6 *2 * (C34+1) / 1048576 -> 13.121796
A8: # of CCPs | B8: 0 | C8: Number of Call Control Platform Applications | I8: OR (weekly) | J8: 0.000% | K8: =300 * (B3 + B4 + B5 + B9 + B10 + 1) *B6 * 2 *(C35+1) / (7 * 1048576) -> 7.518768
A9: # of CTIC | B9: 0 | C9: Number of CTI Connectors | I9: OR (monthly) | J9: 0.000% | K9: =300 * (B3 + B4 + B5 + B9 + B10 +1) *B6 * 2 *(C36+1) / (30 * 1048576) -> 5.267944
A10: # of PSTNC | B10: 0 | C10: Number of PSTN Connectors | G10: Media Control Platform | H10: CDR | I10: CDR | J10: 48.375% | K10: =( (3250+(660*B15)) * B14 * (1+C30))/ 1048576 -> 2,696,596.984863 | L10: =K10 / 1024 -> 2,633.395493 | M10: =L10+L11+L17+L18+L19+L25+L29 -> 3,603.945438
A11: # of ASR and TTS components | B11: 4 | C11: Number of ASR components plus the number of TTS components configured in the deployment | H11: Operational Reporting | I11: OR (5 minutes) | J11: 0.004% | K11: =(300 * (B4 +1) * B7 * 1440 * (1+C31) + 300 * B7 *1440 * (C31+1)) / 1048576 -> 210.937500 | L11: =(K11 + K12 + K13 + K14 +K15 + K16) / 1024 -> 0.257693
A12: # of Calls per Day (RM) | B12: 23,328,000 | I12: OR (30 minutes) | J12: 0.001% | K12: =(300 * (B4 + 1) * B7 *48 * (1+C32) + 300 * B7 * 48 *(C32+1)) / 1048576 -> 28.125000
A13: Average tenant hierarchy length (RM) | B13: 1 | C13: The average number of tenants in the tenant hierarchy for RM sessions | I13: OR (hourly) | J13: 0.000% | K13: =(300 * (B4 + 1) * B7 * 24 * (1+C33) + 300 * B7 * 24 * (C33+1)) / 1048576 -> 14.062500
A14: # of Calls per Day (MCP) | B14: 23,328,000 | I14: OR (daily) | J14: 0.000% | K14: =(300 * (B4 + 1) * B7 * (C34+1) + 100 * B7 *(C34+1)) / 1048576 -> 6.526184
A15: Average tenant hierarchy length (MCP) | B15: 1 | C15: The average number of tenants in the tenant hierarchy for MCP sessions | I15: OR (weekly) | J15: 0.000% | K15: =(((300 * ( B4 + 1) * B7 * (C35+1)) / 7) + ((300 * B7 * (1+C35)) / 7)) / 1048576 -> 3.819057
A16: # of Events per call (MCP) | B16: 5 | C16: Depends on VXML application call flow and needs to be reviewed after application is implemented | I16: OR (monthly) | J16: 0.000% | K16: =(((300 * (B4 + 1) * (C36+1)) / 30) + (300 * B7 * (C36+1) / 30)) / 1048576 -> 0.407639
A17: # of Custom VARs per call | B17: 0 | C17: Depends on the application implementation. This refers to the number of variables logged in a single call flow by <log label="com.genesyslab.var.CustomVar">name|value</log> | H17: Events | I17: Events | J17: 7.982% | K17: =(500 * B14 * B16 *(C43+1)) / 1048576 -> 444,946.289063 | L17: =K17 / 1024 -> 434.517860
A18: # of IVR Actions | B18: 0 | C18: refers to the number of unique “actionID” logged in your application, by the log tag <log label="com.genesyslab.var.ActionStart">actionID[|parentID=<PID>]</log> | H18: VAR | I18: CDR | J18: 6.186% | K18: =((500 + (500 * B17)) * B14 * (C30+1)) / 1048576 -> 344,833.374023 | L18: =K18 / 1024 -> 336.751342
A19: # of Unique Call End Reasons | B19: 0 | C19: refers to the number of unique “Call End Reasons” logged in your application, by the log tag <log label="com.genesyslab.var.CallResult">result[|reason]</log>. | I19: VAR (5 minutes) | J19: 0.002% | K19: =(300 * ( B4 + B5) * (B18 +1) * (B19+1) * 1440 * (C37+1)) *4/ 1048576 -> 105.468750 | L19: =(K19 + K20 + K21 + K22 + K23 + K24) / 1024 -> 0.130022
A20: Failure % | B20: 5 | C20: This is an estimate of the number of calls that will fail the service quality measurement. | I20: VAR (30 minutes) | J20: 0.000% | K20: =(300 * (B4 + B5) * (B18 + 1) * (B19+1) * 48 * (C38+1)) *4/ 1048576 -> 14.062500
A21: SQA stat update period | B21: 900 | C21: The SQA stat update period (see the [sqa]stat.update.interval option in the RS configuration) in seconds. | I21: VAR (hourly) | J21: 0.000% | K21: =(300 * (B4 + B5) * (B18 + 1) * (B19+1) * 24 * (C39+1)) *4/ 1048576 -> 7.031250
A22: SQA service quality period | B22: 900 | C22: The Service Quality Period (see the [sqa]service.quality.period option in the RS configuration) in seconds. | I22: VAR (daily) | J22: 0.000% | K22: =(300 * ( B4 + B5 ) * (B18 + 1) * (B19+1) * (C40+1)) *4 / 1048576 -> 3.332520
A23: # of Calls per Day (CCP) | B23: 0 | I23: VAR (weekly) | J23: 0.000% | K23: =(300 * ( B4 + B5 ) *(B18 + 1) * (B19+1) * (C41+1)) * 4/ (7 * 1048576) -> 1.909528
A24: Average tenant hierarchy length (CCP) | B24: 1 | C24: The average number of tenants in the tenant hierarchy for CCP sessions | I24: VAR (monthly) | J24: 0.000% | K24: =(300 * ( B4 + B5 ) * (B18 + 1) * (B19+1) * (C42+1)) * 4 / ( 30 * 1048576) -> 1.337891
A25: # of Events per call (CCP) | B25: 5 | C25: Depends on CCXML application call flow and needs to be reviewed after application is implemented | H25: SQA Latency | I25: hourly | J25: 0.001% | K25: =(270 *B7 * (C44+1) * 24 * (3600/B21) *32) / 1048576 -> 50.625000 | L25: =(K25 + K26 + K27 + K28) / 1024 -> 0.061005
I26: daily | J26: 0.000% | K26: =(270 *B7 * (C45+1) *32) /1048576 -> 5.998535
I27: weekly | J27: 0.000% | K27: =(270 *B7 * (1+C46)*32) / (7 * 1048576) -> 3.437151
I28: monthly | J28: 0.000% | K28: =(270 * B7 * (1+C47)*32) / (30 * 1048576) -> 2.408203
B29: Data Type | C29: Related Retention Period | D29: Option in CME | H29: SQA Failure | I29: Details | J29: 3.652% | K29: =(500 * B14 * (B20/100) * (1+C48)) / 1048576 -> 203,562.927246 | L29: =(K29 + K30 + K31 + K32 + K33) / 1024 -> 198.832023
A30: CDR | B30: CDR | C30: 30 | D30: rs.db.retention.cdr.default | I30: hourly | J30: 0.001% | K30: =(200 * B7 * B4 * (C49+1) * 24*(3600/B22)) / 1048576 -> 35.156250
A31: Operational Reporting | B31: OR (5 minutes) | C31: 1 | D31: rs.db.retention.operations.5min.default | I31: daily | J31: 0.000% | K31: =(200 * B7 * B4 * (1+C50)) / 1048576 -> 4.165649
B32: OR (30 minutes) | C32: 7 | D32: rs.db.retention.latencies.weekly.default | I32: weekly | J32: 0.000% | K32: =(200 * B7 * B4 * (1+C51)) / (7 * 1048576) -> 1.183646
B33: OR (hourly) | C33: 7 | D33: rs.db.retention.operations.hourly.default | I33: monthly | J33: 0.000% | K33: =(200 * B7 * B4 * (1+C52)) / (30 * 1048576) -> 0.558472
B34: OR (daily) | C34: 90 | D34: rs.db.retention.operations.daily.default | G34: CCP | H34: CDR | I34: CDR | J34: 0.000% | K34: =(1850+(660*B24)) * B23 * (1+C30) / 1048576 -> 0.000000 | L34: =K34 / 1024 -> 0.000000 | M34: =L34 + L35 + L41 -> 0.000000
B35: OR (weekly) | C35: 364 | D35: rs.db.retention.operations.weekly.default | H35: Operational Reporting | I35: OR (5 minutes) | J35: 0.000% | K35: =(300 * (B4 +1) * B8 * 1440 * (1+C31) + 300 * B8 *1440 * (C31+1)) / 1048576 -> 0.000000 | L35: =(K35 + K36 + K37 + K38 + K39 + K40) / 1024 -> 0.000000
B36: OR (monthly) | C36: 1095 | D36: rs.db.retention.operations.monthly.default | I36: OR (30 minutes) | J36: 0.000% | K36: =((300 * (B4 + 1) * B8 * 48 * (1+C32)) + ( 300 * B8 * 48 * (1+C32))) / 1048576 -> 0.000000
A37: VAR | B37: OR (5 minutes) | C37: 1 | D37: rs.db.retention.var.5min.default | I37: OR (hourly) | J37: 0.000% | K37: =((300 * (B4 + 1) * B8 * 24 * (1+C33)) + ( 300 * B8 * 24 * (1+C33))) / 1048576 -> 0.000000
B38: OR (30 minutes) | C38: 7 | D38: rs.db.retention.var.30min.default | I38: OR (daily) | J38: 0.000% | K38: =((300 * (B4 + 1) * B8 * (1+C34)) + ( 300 * B8 * (1+C34))) / 1048576 -> 0.000000
B39: OR (hourly) | C39: 7 | D39: rs.db.retention.var.hourly.default | I39: OR (weekly) | J39: 0.000% | K39: =(((300 * (B4 + 1) * B8 * (1+C35)) / 7)+ (( 300 * B8 * (1+C35)) / 7)) / 1048576 -> 0.000000
B40: OR (daily) | C40: 90 | D40: rs.db.retention.var.daily.default | I40: OR (monthly) | J40: 0.000% | K40: =(((300 * (B4 + 1) * B8 * (1+C36)) / 30)+ (( 300 * B8 * (1+C36)) / 30)) / 1048576 -> 0.000000
B41: OR (weekly) | C41: 364 | D41: rs.db.retention.var.monthly.default | H41: Events | I41: Events | J41: 0.000% | K41: =(500 * B25 * B23 * (1+C43)) / 1048576 -> 0.000000 | L41: =K41 / 1024 -> 0.000000
B42: OR (monthly) | C42: 1095 | D42: rs.db.retention.var.monthly.default | G42: TTS/ASR | H42: Operational Reporting | I42: OR (5 minutes) | J42: 0.001% | K42: =300 *($B$4 + $B$5 + $B$11) * 2 * 1440 * ($C31+1) / 1048576 -> 59.326172 | L42: =(K42 + K43 + K44 + K45 + K46 + K47) / 1024 -> 0.073137 | M42: =L42 -> 0.073137
A43: Events | B43: Events | C43: 7 | D43: rs.db.retention.events.default | I43: OR (30 minutes) | J43: 0.000% | K43: =300 *($B$4 + $B$5 + $B$11) * 2 * 48 * ($C32+1) / 1048576 -> 7.910156
A44: SQA Latency | B44: hourly | C44: 7 | D44: rs.db.retention.latencies.hourly.default | I44: OR (hourly) | J44: 0.000% | K44: =300 *($B$4 + $B$5 + $B$11) * 2 * 24 * ($C33+1) / 1048576 -> 3.955078
B45: daily | C45: 90 | D45: rs.db.retention.latencies.daily.default | I45: OR (daily) | J45: 0.000% | K45: =300 *($B$4 + $B$5 + $B$11) * 2 * ($C34+1) / 1048576 -> 1.874542
B46: weekly | C46: 364 | D46: rs.db.retention.latencies.weekly.default | I46: OR (weekly) | J46: 0.000% | K46: =300 *($B$4 + $B$5 + $B$11) * 2 * ($C35+1) / (7*1048576) -> 1.074110
B47: monthly | C47: 1095 | D47: rs.db.retention.latencies.monthly.default | I47: OR (monthly) | J47: 0.000% | K47: =300 *($B$4 + $B$5 + $B$11) * 2 * ($C36+1) / (30*1048576) -> 0.752563
A48: SQA Failure | B48: Details | C48: 365 | D48: rs.db.retention.sq.failures.default | N48: For Oracle 11g - Partitioning Mode - RS 814 - Only RS' Tablespace Size Estimation - Oracle System / log files not included.
B49: hourly | C49: 7 | D49: rs.db.retention.sq.hourly.default
B50: daily | C50: 90 | D50: rs.db.retention.sq.daily.default
B51: weekly | C51: 180 | D51: rs.db.retention.sq.weekly.default
B52: monthly | C52: 365 | D52: rs.db.retention.sq.monthly.default
A53: For Oracle 11g - Partitioning Mode - RS 814 - Only RS' Tablespace Size Estimation - Oracle System / log files not included.

Sheet ICON
A1: Interaction Concentrator Database Size Estimator
A3: This Database Size Estimator requires a separate spreadsheet. Download the spreadsheet using the link provided below.
B4: ICON 8.1 Database Size Estimator
A6: Note: The estimator can also be accessed from the Interaction Concentrator documentation landing page using the link provided below.
B7: https://docs.genesys.com/Documentation/ICON

Sheet iWD Sizing Calculator
A1: iWD 8.0 with MS SQL Server
A3: System Profile | B3: Number | D3: H/W Configuration | E3: Number
A4: Task expiration period (days) | B4: 30 | C4: =IF(B4 < 1,"< 1 ERROR", "") ->  | D4: CPU clock (GHz) | E4: 3
A5: iWD Data Mart DB retention period (days) | B5: 365 | C5: =IF(B5 < 1,"< 1 ERROR", "") ->  | D5: CPU core number | E5: 4
A6: Incoming task rate (per day) | B6: 200,000 | C6: =IF(B6 < B8,TEXT(B8,"< 0.00"), "") ->  | D6: Memory (MB) | E6: 4,000
A7: Average re-prioritization period (hours) | B7: 1 | C7: =IF(B7 < 0.1,"< 0.1 ERROR", "") -> 
A8: Maximum incoming task rate (per second) | B8: 30 | C8: =IF(B8 < B6/24/3600,TEXT(B6/24/3600,"< 0.00"), "") -> 
A9: Average number of tasks in backlog | B9: 40,000 | C9: =IF(B9 < 1,"< 1 ERROR", "") -> 
A10: Number of agents | B10: 2,000 | C10: =IF(B10 < 1,"< 1 ERROR", "") -> 
A11: Attached data size (KB) ( > 1 ) | B11: 4 | C11: =IF(B11 < 1,"< 1 ERROR", "") -> 
A13: Estimated Effective Task Rate (tasks/sec) | B13: Databse Configuration
A14: =(B8 + (B9/B7/3600 ))*(1+0.061*(B11-1)) -> 54.27 | B14: =IF(A14 < 20,"All in One","Separate Host per DB") -> Separate Host per DB | C14: =IF(A14 >45," IxN DB on RAID","") -> IxN DB on RAID
B16: Database File Size (GB)
A17: Database Name | B17: MS SQL
A18: Interaction Server database | B18: =((C34 +(B11-B41))*(B9 + B4*B6)/1024)/1024 -> 236.19
A19: Interaction Server Event Log database | B19: =((C35+(B11-B41))*(B9+B4*B6)/1024)/1024 -> 255.78
A20: iWD Data Mart database | B20: =(C36*(B5*B6)/1024)/1024 -> 29.67
D22: H/W checks: all must be PASS
A23: Application | B23: CPU Usage % | C23: Maximum CPU Usage % | D23: CPU Check | E23: Memory Check
A24: Interaction Server | B24: =(B46 + (C46 *(A14+(B9/B7/3600 )))+(D46 *B9)+(F46 *B10))*(B42/E4) -> 97.17 | C24: =E5*80 - ( B28 + B29) -> 301 | D24: =IF(B24 < C24,"PASS", "FAILED") -> PASS | E24: =IF((580+ 200 + 180 + 1200)<( E6 * 0.8),"PASS", "FAILED") -> PASS
A25: iWD Runtime Node | B25: =(B47 + (C47 *(A14+(B9/B7/3600 )))+(D47 *B9)+(F47 *B10))*(B42/E4) -> 50.18 | C25: =E5*80 -> 320 | D25: PASS | E25: =IF(3000 < E6*0.8,"PASS", "FAILED") -> PASS
A26: iWD DataMart Node MAX | B26: =(B48 + (C48 *(A14+(B9/B7/3600 )))+(D48 *B9)+(F48 *B10))*(B42/E4) -> 299.00 | C26: =E5*80 -> 320 | D26: PASS | E26: =IF(3100 < (E6*0.8),"PASS", "FAILED") -> PASS
A27: MS SQL Server | B27: =(B49 + (C49 *(A14+(B9/B7/3600 )))+(D49 *B9)+(F49 *B10))*(B42/E4) -> 90.05 | C27: =E5*80 -> 320 | D27: PASS | E27: =IF(3199 < (E6*0.8),"PASS", "FAILED") -> PASS
A28: Universal Routing Server | B28: =(B50 + (C50 *(A14+(B9/B7/3600 )))+(D50 *B9)+(F50 *B10))*(B42/E4) -> 14.35 | C28: 80 | D28: PASS | E28: =IF((580+ 200 + 180 + 1200)<( E6 * 0.8),"PASS", "FAILED") -> PASS
A29: Stat Server | B29: =(B51 + (C51 *(A14+(B9/B7/3600 )))+(D51 *B9)+(F51 *B10))*(B42/E4) -> 4.47 | C29: 80 | D29: PASS | E29: =IF((580+ 200 + 180 + 1200)<( E6 * 0.8),"PASS", "FAILED") -> PASS
A33: database_name | B33: databse_file_size KB | C33: KB per task
A34: ixn_db | B34: 1140101 | C34: =B34/B40 -> 38.00336667
A35: ixn_eventlog_db | B35: 41404098 | C35: =B35/B39 -> 41.404098
A36: iwddatamart_2 | B36: 426240 | C36: =B36/B39 -> 0.42624
A38: System test metrics
A39: Total tasks processed | B39: 1000000
A40: Tasks Number in queues | B40: 30000
A41: Attached Data Size (KB) | B41: 1
A42: Host CPU GHz | B42: 2.8
A45: Application | B45: CPU0 | C45: K1 | D45: K2 | F45: K3
A46: Interaction server | B46: 1.1 | C46: 1.28 | D46: 2.23E-05 | F46: 2.70E-03
A47: iWD running node | B47: 0.87 | C47: 0.68 | D47: 4.03E-05 | F47: 0
A48: iWD DataMart node MAX | B48: 53 | C48: 3.46 | D48: 1.19E-05 | F48: 1.42E-03
A49: SQL server | B49: 0.5 | C49: 1.27 | D49: 1.17E-05 | F49: 0.00E+00
A50: URS | B50: 0 | C50: 0.177 | D50: 4.85E-05 | F50: 0.00E+00
A51: Stat Server | B51: 0.1 | C51: 0.038 | D51: 4.27E-05 | F51: 0.00E+00

Sheet LRM
A2: License Reporting Manager: LRM Sizing Recommendations
A4: LRM does not require complex sizing calculations. The table below from the Hardware Sizing Guide is included here for spreadsheet user convenience.
B6: Medium Contact Centre | C6: Large Contact Centre
A7: Total agents | B7: 1000 | C7: 21,000
A8: Total shifts | B8: 2 | C8: 3
A9: Agents/shift | B9: 500 | C9: 700
A10: Logins/day | B10: 1000 | C10: 21,000
A11: Products | B11: CIM | C11: CIM
A12: Minimum recommended free disk space for LRM DB | B12: 10GB | C12: 20GB
A13: Disk space recommended for LRM DB to keep >13 months of reporting data | B13: Approximately 20 GB, depending upon number of tenants, agents, places, tenants, sellable items, bundles | C13: Approximately 40 GB, depending upon number of tenants, agents, places, tenants, sellable items, bundles
A14: Minimum recommended CPU 1 Intel CPU 2.6 GHz | B14: 1 Intel CPU 2.6 GHz core 2 duo | C14: 2 Intel CPU 2.6 GHz core 2 duo
A15: Minimum recommended Memory | B15: 4GB | C15: 8GB *
A16: Dedicated server requirement | B16: No | C16: Yes
A17: VM info/recommendations | B17: VMs are acceptable if they have similar CPU, memory, and disk resources | C17: VMs are acceptable if they have similar CPU, memory, and disk resources
A19: For a large contact center, if the system has more than 50,000 agents, LRM requires additional Java Heap space to load the agent information from the Configuration Server. See the License Reporting Manager 8.1 Deployment Guide for details.
A20: * If the number of agents exceeds 100,000 agents, Genesys recommends that LRM is deployed on a host or Virtual Machine with a minimum of 8 GB RAM.

Sheet Multimedia
A1: Multimedia 8.0
A2: Use this spreadsheet to estimate the size of the Multimedia Database for your environment. Some examples are provided. 1. Change the values in the number column for your environment. 2. Your estimated database sizes appear in the last rows.
A5: Entry | B5: Number
A6: Email Interactions Per Day | B6: 100
A7: Chat Interactions Per Day | B7: 1,000
A8: Attached Data, in Kbytes | B8: 16 | C8: Recommended limit - 16 Kb
A9: Contacts | B9: 100,000
A10: Active Interactions maximum number | B10: 10,000
A11: UCS Database Lifetime (Days) | B11: 90
A12: Estimations
A13: UCS DB Size (MB) | B13: =((B6*1024*25 + B7*1024*5)*B11 + B9*1024)/(1024*1024) -> 756.84
A14: Interaction Server DB Size (MB) | B14: =(3.5+B8)*1024*B10/(1024*1024) -> 190.43

Sheet OCS
A1: Outbound Contact 8.0
A2: Use this spreadsheet to estimate the size of the Outbound Contact Database for your environment. Some examples are provided. 1. Change the values for your environment. 2. Your estimated database sizes appear in the last rows. Note: This spread sheet supports up to 8 calling lists. For more than 8 calling lists, use the following formula for estimated database sizing.
A4: Formula:
A6: M - number of calling lists, Ni – number of records in the calling list i, Li – length of record for calling list i. si – coefficient for index space. Example: OCS uses two calling lists: List 1 contains 100000 records with record size 600 bytes and List 2 contains 50000 records with record size 450 bytes. Indexes occupy one-third of table space. Estimated database size will be: 1.33 * (100000*600 + 50000*450) / (1024*1024) = 104.6 MB
A8: Entry | B8: Number
A9: Coefficient for index space (si) | B9: 1.33
A10: Number of calling lists (M) | B10: 6 | C10: =IF(B10>8,"Error: This spread sheet supports only upto eight calling lists.","") -> 
A12: Number of records in the calling list-1 | B12: 100,000
A13: Length of record for calling list-1 (Bytes) | B13: 600
A15: Number of records in the calling list-2 | B15: 50,000
A16: Length of record for calling list-2 (Bytes) | B16: 450
A18: Number of records in the calling list-3
A19: Length of record for calling list-3 (Bytes)
A21: Number of records in the calling list-4
A22: Length of record for calling list-4 (Bytes)
A24: Number of records in the calling list-5
A25: Length of record for calling list-5 (Bytes)
A27: Number of records in the calling list-6
A28: Length of record for calling list-6 (Bytes)
A30: Number of records in the calling list-7
A31: Length of record for calling list-7 (Bytes)
A33: Number of records in the calling list-8
A34: Length of record for calling list-8 (Bytes)
A36: OCS DB Size (MB) | B36: =B9*((B12*B13)+(B15*B16)+(B18*B19)+(B21*B22)+(B24*B25)+(B27*B28)+(B30*B31)+(B33*B34))/(1024*1024) -> 104.64

Sheet WFM Oracle
A1: Workforce Management 8.0 with Oracle
A3: Contact Center Configuration | B3: Number
A4: Type of the Database Server: | B4: Oracle
A5: Number of Sites: | B5: 3 | C5: <-- | D5: Please enter the estimated number of Sites | E5: nSites
A6: Number of Activities and Multi-Site Activities: | B6: 100 | C6: <-- | D6: Please enter the estimated number of Activities | E6: nActivities
A7: Number of Agents: | B7: 3,000 | C7: <-- | D7: Please enter the estimated number of Agents | E7: nAgents
A8: Number of Teams: | B8: 300 | C8: <-- | D8: Please enter the estimated number of Teams | E8: nTeams
A9: Number of Schedule Trades per Agent per Year: | B9: 15 | C9: <-- | D9: Please enter the estimated number of Trading Transactions per Agent per Year | E9: nTrading
A10: Number of Scenarios per Year for Same Activities: | B10: 5 | C10: <-- | D10: Please enter the estimated number of Scenarios for Same Activities per Year | E10: nScenarios
A11: Number of Days per Scenario: | B11: 30 | C11: <-- | D11: Please enter the estimated number of Days in each Scenario | E11: nDays
A12: Number of Factors: | B12: 15 | C12: <-- | D12: Please enter the estimated number of Factors | E12: nFactors
A13: Number of Events per Factor: | B13: 2 | C13: <-- | D13: Please enter the estimated number of Events per Factor | E13: nFactorEvents
A14: Number of Forecast Override Templates: | B14: 25 | C14: <-- | D14: Please enter the estimated number of Forecast Override Templates | E14: nTemp
A15: Number of Days per Override Template: | B15: 30 | C15: <-- | D15: Please enter the estimated number of Days per Override Template | E15: nTempDays
A16: Number of Forecast non-Override (weekly) Templates: | B16: 25 | C16: <-- | D16: Please enter the estimated number of non-Override Templates | E16: nTempWeekly
A17: Number of Calendar Items changes per Day: | B17: 10 | C17: <-- | D17: Please enter the estimated number of Calendar changes per Day | E17: nCalChanges
A18: Number of changed Calendar Items per transaction: | B18: 10 | C18: <-- | D18: Please enter the estimated number of changed Calendar Items per each change | E18: nCalItems
A19: Number of Calendar Items per Agent per Year: | B19: 10 | C19: <-- | D19: Please enter the estimated number of Calendar Items per Agent per Year | E19: nCalendar
D20: (count Vacations, Sick Days, Exceptions, Day Offs, etc.)
A21: Number of manual schedule changes per Agent per Year: | B21: 33 | C21: <-- | D21: Please enter the estimated number of schedule changes for one Agent per Year | E21: nSchChanges
A22: Polling Timer: | B22: =365*24*60 -> 525600 | C22: <-- | D22: Please enter the number of times WFM Daemon will ask WFM Server for updates per Year. | E22: nPollingTimer
D23: Default setting is 1 minute = 365 * 24 * 60. Enter 0 if you will not use WFM Daemon.
A24: Audit type: | B24: Low | C24: <-- | D24: Please select between Low and High Audit Level. Possible values are: Low or High. | E24: nAuditLevel
A26: Formulas used in calculations | B26: Bytes | C26: GB | D26: Brief Explanations
A27: Configuration: | B27: =(B6*89026.65+B7*4572.2)*17.7 -> 400,360,991 | C27: =B27/1024/1024/1024 -> 0.37 | D27: (nActivities * RecordSize + nAgents * RecordSize) * CONSTANT(17.70)
D28: By multiplying the sizes of Activities and Agents tables by this Constant you get the exact size of all the Configuration subsystem. The constant is the average value calculated from many Customer databases on Oracle Server.
A29: Agent Real Time: | B29: =365*B7*705.73 -> 772,774,350 | C29: =B29/1024/1024/1024 -> 0.72 | D29: 365 days * nAgents * RecordSize
A30: Trading: | B30: =B7*(B9*398.8+B9*2*418.1+B9*2*391.33) -> 90,794,700 | C30: 0.08 | D30: nAgents * (nTrading * RecordSize1 + nTrading * 2 * RecordSize2 + nTrading * 2 * RecordSize3)
A31: Calendar: | B31: =B7*B19*158.61 -> 4,758,300 | C31: 0.00 | D31: nAgents * nCalendar * RecordSize
A32: Performance Act: | B32: =365*96*B6*151.48 -> 530,785,920 | C32: 0.49 | D32: 365 days * 96 timesteps * nActivities * RecordSize
A33: Performance Team: | B33: =365*96*B8*124.86 -> 1,312,528,320 | C33: 1.22 | D33: 365 days * 96 timesteps * nTeams * RecordSize
A34: Performance Act/Team: | B34: =365*96*B8*121.65 -> 1,278,784,800 | C34: 1.19 | D34: 365 days * 96 timesteps * nTeams * RecordSize
A35: Performance Alerts: | B35: =10*329502.24 -> 3,295,022 | C35: 0.00 | D35: CONSTANT (Average number of Alerts per Year = 10) * RecordSize
A36: Schedule Master: | B36: =B7*365*381.15 -> 417,359,250 | C36: 0.39 | D36: nAgents * 365 * RecordSize
A37: Schedule Scenario: | B37: =B7*365*381.15 -> 417,359,250 | C37: 0.39 | D37: nAgents * 365 * RecordSize
A38: Baseline Schedule: | B38: =B7*365*381.15*0.1 -> 41,735,925 | C38: 0.04 | D38: nAgents * 365 * 10% * RecordSize
A39: Calendar Audit: | B39: =365 * B17*B18*943 -> 34,419,500 | C39: 0.03 | D39: 365 days * nCalChanges * nCalItems * RecordSize
A40: Trade Audit: | B40: =B7*237.9*(B9+B9*2+B9*2)*2 -> 107,055,000 | C40: 0.10 | D40: nAgents * RecordSize * (nTrading + nTrading * 2 + nTrading * 2 ) * 2
A41: Schedule audit: | B41: =B7*B21*(403.36+IF(B24="Low", 0, 381.15)+276.04)+B7*365*(276.04+IF(B24="Low", 0, 381.15)+111.71) -> 491,846,850 | C41: 0.46 | D41: nAgents*nSchChanges*RecordSize1 + nAgents*365*RecordSize2
A42: Trading acknowledgements: | B42: =B22*B5*335.66 -> 529,268,688 | C42: 0.49 | D42: nPollingTimer * nSites * RecordSize
A43: Schedule acknowledgements: | B43: =B22*B5*283.84 -> 447,558,912 | C43: 0.42 | D43: nPollingTimer * nSites * RecordSize
A44: Calendar acknowledgements: | B44: =B22*B5*98.04 -> 154,589,472 | C44: 0.14 | D44: nPollingTimer * nSites * RecordSize
A45: Forecast: | B45: =B10*2*B11*4055.04 -> 1,216,512 | C45: 0.00 | D45: nScenarios * 2 * nDays * nActivities * RecordSize
A46: Forecast Events: | B46: =B12*B13*2*2115.23 -> 126,914 | C46: 0.00 | D46: nFactors * nFactorEvents * 2 * RecordSize
A47: Forecast Override Templates: | B47: =B14*96*B15*303.4 -> 21,844,800 | C47: 0.02 | D47: nTemp * 96 * nTempDays * RecordSize
A48: Forecast Weekly Templates: | B48: =B15*96*7*303.4 -> 6,116,544 | C48: 0.01 | D48: nTempWeekly * 96 * 7 * RecordSize
A49: Forecast Params: | B49: =B6*B10*3221.13 -> 1,610,565 | C49: 0.00 | D49: nActivities * nScenarios * RecordSize
A51: Annual WFM Database size | B51: Bytes | C51: GB
A52: DB Size Year 1: | B52: =SUM(B27:B49) -> 7,066,190,585 | C52: =B52/1024/1024/1024 -> 6.58
A53: DB Size Year 2: | B53: =B52*2 -> 14,132,381,169 | C53: =B53/1024/1024/1024 -> 13.16
A54: DB Size Year 3: | B54: =B52*3 -> 21,198,571,754 | C54: =B54/1024/1024/1024 -> 19.74
A55: DB Size Year 4: | B55: =B52*4 -> 28,264,762,339 | C55: =B55/1024/1024/1024 -> 26.32
C58: Notes: | D58: RecordSize for each subsystem is calculated using customer databases with real data on Oracle 10g.

Sheet WFM MSSQL
A1: Workforce Management 8.0 with Microsoft SQL Server
A3: Contact Center Configuration | B3: Number
A4: Type of the Database Server: | B4: MSSQL
A5: Number of Sites: | B5: 3 | C5: <-- | D5: Please enter the estimated number of Sites | E5: nSites
A6: Number of Activities and Multi-Site Activities: | B6: 100 | C6: <-- | D6: Please enter the estimated number of Activities | E6: nActivities
A7: Number of Agents: | B7: 3,000 | C7: <-- | D7: Please enter the estimated number of Agents | E7: nAgents
A8: Number of Teams: | B8: 300 | C8: <-- | D8: Please enter the estimated number of Teams | E8: nTeams
A9: Number of Schedule Trades per Agent per Year: | B9: 15 | C9: <-- | D9: Please enter the estimated number of Trading Transactions per Agent per Year | E9: nTrading
A10: Number of Scenarios per Year for Same Activities: | B10: 5 | C10: <-- | D10: Please enter the estimated number of Scenarios for Same Activities per Year | E10: nScenarios
A11: Number of Days per Scenario: | B11: 30 | C11: <-- | D11: Please enter the estimated number of Days in each Scenario | E11: nDays
A12: Number of Factors: | B12: 15 | C12: <-- | D12: Please enter the estimated number of Factors | E12: nFactors
A13: Number of Events per Factor: | B13: 2 | C13: <-- | D13: Please enter the estimated number of Events per Factor | E13: nFactorEvents
A14: Number of Forecast Override Templates: | B14: 25 | C14: <-- | D14: Please enter the estimated number of Forecast Override Templates | E14: nTemp
A15: Number of Days per Override Template: | B15: 30 | C15: <-- | D15: Please enter the estimated number of Days per Override Template | E15: nTempDays
A16: Number of Forecast non-Override (weekly) Templates: | B16: 25 | C16: <-- | D16: Please enter the estimated number of non-Override Templates | E16: nTempWeekly
A17: Number of Calendar Items changes per Day: | B17: 10 | C17: <-- | D17: Please enter the estimated number of Calendar changes per Day | E17: nCalChanges
A18: Number of changed Calendar Items per transaction: | B18: 10 | C18: <-- | D18: Please enter the estimated number of changed Calendar Items per each change | E18: nCalItems
A19: Number of Calendar Items per Agent per Year: | B19: 10 | C19: <-- | D19: Please enter the estimated number of Calendar Items per Agent per Year | E19: nCalendar
D20: (count Vacations, Sick Days, Exceptions, Day Offs, etc.)
A21: Number of manual schedule changes per Agent per Year: | B21: 33 | C21: <-- | D21: Please enter the estimated number of schedule changes for one Agent per Year | E21: nSchChanges
A22: Polling Timer: | B22: =365*24*60 -> 525600 | C22: <-- | D22: Please enter the number of times WFM Daemon will ask WFM Server for updates per Year. | E22: nPollingTimer
D23: Default setting is 1 minute = 365 * 24 * 60. Enter 0 if you will not use WFM Daemon.
A24: Audit type: | B24: Low | C24: <-- | D24: Please select between Low and High Audit Level. Possible values are: Low or High. | E24: nAuditLevel
A26: Formulas used in calculations | B26: Bytes | C26: GB | D26: Brief Explanations
A27: Configuration: | B27: =(B6*4082.25+B7*445.65)*9.37 -> 16,352,290 | C27: =B27/1024/1024/1024 -> 0.02 | D27: (nActivities * RecordSize + nAgents * RecordSize) * CONSTANT(9.37)
D28: By multiplying the sizes of Activities and Agents tables by this Constant you get the exact size of all the Configuration subsystem. The constant is the average value calculated from many Customer databases on MSSQL Server.
A29: Agent Real Time: | B29: =365*B7*824.12 -> 902,411,400 | C29: =B29/1024/1024/1024 -> 0.84 | D29: 365 days * nAgents * RecordSize
A30: Trading: | B30: =B7*(B9*1012.49+B9*2*577.64+B9*2*615.94) -> 152,984,250 | C30: 0.14 | D30: nAgents * (nTrading * RecordSize1 + nTrading * 2 * RecordSize2 + nTrading * 2 * RecordSize3)
A31: Calendar: | B31: =B7*B19*192.05 -> 5,761,500 | C31: 0.01 | D31: nAgents * nCalendar * RecordSize
A32: Performance Act: | B32: =365*96*B6*180.25 -> 631,596,000 | C32: 0.59 | D32: 365 days * 96 timesteps * nActivities * RecordSize
A33: Performance Team: | B33: =365*96*B8*161.7 -> 1,699,790,400 | C33: 1.58 | D33: 365 days * 96 timesteps * nTeams * RecordSize
A34: Performance Act/Team: | B34: =365*96*B8*153.45 -> 1,613,066,400 | C34: 1.50 | D34: 365 days * 96 timesteps * nTeams * RecordSize
A35: Performance Alerts: | B35: =10*22391.47 -> 223,915 | C35: 0.00 | D35: CONSTANT (Average number of Alerts per Year = 10) * RecordSize
A36: Schedule Master: | B36: =B7*365*520 -> 569,400,000 | C36: 0.53 | D36: nAgents * 365 * RecordSize
A37: Schedule Scenario: | B37: =B7*365*520 -> 569,400,000 | C37: 0.53 | D37: nAgents * 365 * RecordSize
A38: Baseline Schedule: | B38: =B7*365*520*0.1 -> 56,940,000 | C38: 0.05 | D38: nAgents * 365 * 10% * RecordSize
A39: Calendar Audit: | B39: =365 * B17*B18*495.23 -> 18,075,895 | C39: 0.02 | D39: 365 days * nCalChanges * nCalItems * RecordSize
A40: Trade Audit: | B40: =B7*99.45*(B9+B9*2+B9*2)*2 -> 44,752,500 | C40: 0.04 | D40: nAgents * RecordSize * (nTrading + nTrading * 2 + nTrading * 2 ) * 2
A41: Schedule audit: | B41: =B7*B21*(145.29+IF(B24="Low", 0, 520)+118.67)+B7*365*(118.67+IF(B24="Low", 0, 520)+84.78) -> 248,909,790 | C41: 0.23 | D41: nAgents*nSchChanges*RecordSize1 + nAgents*365*RecordSize2
A42: Trading acknowledgements: | B42: =B22*B5*82.9 -> 130,716,720 | C42: 0.12 | D42: nPollingTimer * nSites * RecordSize
A43: Schedule acknowledgements: | B43: =B22*B5*101.04 -> 159,319,872 | C43: 0.15 | D43: nPollingTimer * nSites * RecordSize
A44: Calendar acknowledgements: | B44: =B22*B5*98.04 -> 154,589,472 | C44: 0.14 | D44: nPollingTimer * nSites * RecordSize
A45: Forecast: | B45: =B10*2*B11*925.89 -> 277,767 | C45: 0.00 | D45: nScenarios * 2 * nDays * nActivities * RecordSize
A46: Forecast Events: | B46: =B12*B13*2*2115.23 -> 126,914 | C46: 0.00 | D46: nFactors * nFactorEvents * 2 * RecordSize
A47: Forecast Override Templates: | B47: =B14*96*B15*78.35 -> 5,641,200 | C47: 0.01 | D47: nTemp * 96 * nTempDays * RecordSize
A48: Forecast Weekly Templates: | B48: =B15*96*7*78.35 -> 1,579,536 | C48: 0.00 | D48: nTempWeekly * 96 * 7 * RecordSize
A49: Forecast Params: | B49: =B6*B10*96.57 -> 48,285 | C49: 0.00 | D49: nActivities * nScenarios * RecordSize
A51: Annual WFM Database size | B51: Bytes | C51: GB
A52: DB Size Year 1: | B52: =SUM(B27:B49) -> 6,981,964,105 | C52: =B52/1024/1024/1024 -> 6.50
A53: DB Size Year 2: | B53: =B52*2 -> 13,963,928,211 | C53: =B53/1024/1024/1024 -> 13.00
A54: DB Size Year 3: | B54: =B52*3 -> 20,945,892,316 | C54: =B54/1024/1024/1024 -> 19.51
A55: DB Size Year 4: | B55: =B52*4 -> 27,927,856,421 | C55: =B55/1024/1024/1024 -> 26.01
C58: Notes: | D58: RecordSize for each subsystem is calculated using customer databases with real data on MSSQL Server 2000.

Sheet WFM DB2
A1: Workforce Management 8.0 with DB2
A3: Contact Center Configuration | B3: Number
A4: Type of the Database Server: | B4: DB2
A5: Number of Sites: | B5: 3 | C5: <-- | D5: Please enter the estimated number of Sites | E5: nSites
A6: Number of Activities and Multi-Site Activities: | B6: 100 | C6: <-- | D6: Please enter the estimated number of Activities | E6: nActivities
A7: Number of Agents: | B7: 3,000 | C7: <-- | D7: Please enter the estimated number of Agents | E7: nAgents
A8: Number of Teams: | B8: 300 | C8: <-- | D8: Please enter the estimated number of Teams | E8: nTeams
A9: Number of Schedule Trades per Agent per Year: | B9: 15 | C9: <-- | D9: Please enter the estimated number of Trading Transactions per Agent per Year | E9: nTrading
A10: Number of Scenarios per Year for Same Activities: | B10: 5 | C10: <-- | D10: Please enter the estimated number of Scenarios for Same Activities per Year | E10: nScenarios
A11: Number of Days per Scenario: | B11: 30 | C11: <-- | D11: Please enter the estimated number of Days in each Scenario | E11: nDays
A12: Number of Factors: | B12: 15 | C12: <-- | D12: Please enter the estimated number of Factors | E12: nFactors
A13: Number of Events per Factor: | B13: 2 | C13: <-- | D13: Please enter the estimated number of Events per Factor | E13: nFactorEvents
A14: Number of Forecast Override Templates: | B14: 25 | C14: <-- | D14: Please enter the estimated number of Forecast Override Templates | E14: nTemp
A15: Number of Days per Override Template: | B15: 30 | C15: <-- | D15: Please enter the estimated number of Days per Override Template | E15: nTempDays
A16: Number of Forecast non-Override (weekly) Templates: | B16: 25 | C16: <-- | D16: Please enter the estimated number of non-Override Templates | E16: nTempWeekly
A17: Number of Calendar Items changes per Day: | B17: 10 | C17: <-- | D17: Please enter the estimated number of Calendar changes per Day | E17: nCalChanges
A18: Number of changed Calendar Items per transaction: | B18: 10 | C18: <-- | D18: Please enter the estimated number of changed Calendar Items per each change | E18: nCalItems
A19: Number of Calendar Items per Agent per Year: | B19: 10 | C19: <-- | D19: Please enter the estimated number of Calendar Items per Agent per Year | E19: nCalendar
D20: (count Vacations, Sick Days, Exceptions, Day Offs, etc.)
A21: Number of manual schedule changes per Agent per Year: | B21: 33 | C21: <-- | D21: Please enter the estimated number of schedule changes for one Agent per Year | E21: nSchChanges
A22: Polling Timer: | B22: =365*24*60 -> 525600 | C22: <-- | D22: Please enter the number of times WFM Daemon will ask WFM Server for updates per Year. | E22: nPollingTimer
D23: Default setting is 1 minute = 365 * 24 * 60. Enter 0 if you will not use WFM Daemon.
A24: Audit type: | B24: Low | C24: <-- | D24: Please select between Low and High Audit Level. Possible values are: Low or High. | E24: nAuditLevel
A26: Formulas used in calculations | B26: Bytes | C26: GB | D26: Brief Explanations
A27: Configuration: | B27: =(B6*4082.25+B7*445.65)*9.37 -> 16,352,290 | C27: =B27/1024/1024/1024 -> 0.02 | D27: (nActivities * RecordSize + nAgents * RecordSize) * CONSTANT(9.37)
D28: By multiplying the sizes of Activities and Agents tables by this Constant you get the exact size of all the Configuration subsystem. The constant is the average value calculated from many Customer databases on DB2 Server.
A29: Agent Real Time: | B29: =365*B7*798 -> 873,810,000 | C29: =B29/1024/1024/1024 -> 0.81 | D29: 365 days * nAgents * RecordSize
A30: Trading: | B30: =B7*(B9*1012.49+B9*2*577.64+B9*2*615.94) -> 152,984,250 | C30: 0.14 | D30: nAgents * (nTrading * RecordSize1 + nTrading * 2 * RecordSize2 + nTrading * 2 * RecordSize3)
A31: Calendar: | B31: =B7*B19*192.05 -> 5,761,500 | C31: 0.01 | D31: nAgents * nCalendar * RecordSize
A32: Performance Act: | B32: =365*96*B6*180.25 -> 631,596,000 | C32: 0.59 | D32: 365 days * 96 timesteps * nActivities * RecordSize
A33: Performance Team: | B33: =365*96*B8*161.7 -> 1,699,790,400 | C33: 1.58 | D33: 365 days * 96 timesteps * nTeams * RecordSize
A34: Performance Act/Team: | B34: =365*96*B8*153.45 -> 1,613,066,400 | C34: 1.50 | D34: 365 days * 96 timesteps * nTeams * RecordSize
A35: Performance Alerts: | B35: =10*22391.47 -> 223,915 | C35: 0.00 | D35: CONSTANT (Average number of Alerts per Year = 10) * RecordSize
A36: Schedule Master: | B36: =B7*365*520 -> 569,400,000 | C36: 0.53 | D36: nAgents * 365 * RecordSize
A37: Schedule Scenario: | B37: =B7*365*520 -> 569,400,000 | C37: 0.53 | D37: nAgents * 365 * RecordSize
A38: Baseline Schedule: | B38: =B7*365*520*0.1 -> 56,940,000 | C38: 0.05 | D38: nAgents * 365 * 10% * RecordSize
A39: Calendar Audit: | B39: =365 * B17*B18*495.23 -> 18,075,895 | C39: 0.02 | D39: 365 days * nCalChanges * nCalItems * RecordSize
A40: Trade Audit: | B40: =B7*99.45*(B9+B9*2+B9*2)*2 -> 44,752,500 | C40: 0.04 | D40: nAgents * RecordSize * (nTrading + nTrading * 2 + nTrading * 2 ) * 2
A41: Schedule audit: | B41: =B7*B21*(145.29+IF(B24="Low", 0, 520)+118.67)+B7*365*(118.67+IF(B24="Low", 0, 520)+84.78) -> 248,909,790 | C41: 0.23 | D41: nAgents*nSchChanges*RecordSize1 + nAgents*365*RecordSize2
A42: Trading acknowledgements: | B42: =B22*B5*82.9 -> 130,716,720 | C42: 0.12 | D42: nPollingTimer * nSites * RecordSize
A43: Schedule acknowledgements: | B43: =B22*B5*101.04 -> 159,319,872 | C43: 0.15 | D43: nPollingTimer * nSites * RecordSize
A44: Calendar acknowledgements: | B44: =B22*B5*98.04 -> 154,589,472 | C44: 0.14 | D44: nPollingTimer * nSites * RecordSize
A45: Forecast: | B45: =B10*2*B11*925.89 -> 277,767 | C45: 0.00 | D45: nScenarios * 2 * nDays * nActivities * RecordSize
A46: Forecast Events: | B46: =B12*B13*2*2115.23 -> 126,914 | C46: 0.00 | D46: nFactors * nFactorEvents * 2 * RecordSize
A47: Forecast Override Templates: | B47: =B14*96*B15*78.35 -> 5,641,200 | C47: 0.01 | D47: nTemp * 96 * nTempDays * RecordSize
A48: Forecast Weekly Templates: | B48: =B15*96*7*78.35 -> 1,579,536 | C48: 0.00 | D48: nTempWeekly * 96 * 7 * RecordSize
A49: Forecast Params: | B49: =B6*B10*96.57 -> 48,285 | C49: 0.00 | D49: nActivities * nScenarios * RecordSize
A51: Annual WFM Database size | B51: Bytes | C51: GB
A52: DB Size Year 1: | B52: =SUM(B27:B49) -> 6,953,362,705 | C52: =B52/1024/1024/1024 -> 6.48
A53: DB Size Year 2: | B53: =B52*2 -> 13,906,725,411 | C53: =B53/1024/1024/1024 -> 12.95
A54: DB Size Year 3: | B54: =B52*3 -> 20,860,088,116 | C54: =B54/1024/1024/1024 -> 19.43
A55: DB Size Year 4: | B55: =B52*4 -> 27,813,450,821 | C55: =B55/1024/1024/1024 -> 25.90
C58: Notes: | D58: RecordSize for each subsystem is calculated using customer databases with real data on DB2 Server 8.2.

Sheet ICON_IDBSize (hidden)
A1: Table | B1: Row Size | C1: Rows Per Day | D1: Table Size Per Year | E1: Index Size Per Year | F1: Total Size Per Year | G1: Rows Per Year | H1: Comments
A2: GS_AGENT_STAT | B2: =IconRowSizes!M48 ->  | C2: =IF(VLOOKUP(#REF!,#REF!,2,FALSE), C19*#REF!, 0) ->  | D2: =$B$50*CEILING($G2/FLOOR($B$48/$B2,1),1) ->  | E2: =$B$50*IF(IconRowSizes!$N48, CEILING($G2/FLOOR($B$49/IconRowSizes!$N48,1),1),0) + IF(IconRowSizes!$O48, $B$50*CEILING($G2/FLOOR($B$49/IconRowSizes!$O48,1),1),0) + IF(IconRowSizes!$P48, $B$50*CEILING($G2/FLOOR($B$49/IconRowSizes!$P48,1),1),0) + IF(IconRowSizes!$Q48, $B$50*CEILING($G2/FLOOR($B$49/IconRowSizes!$Q48,1),1),0) + IF(IconRowSizes!$R48, $B$50*CEILING($G2/FLOOR($B$49/IconRowSizes!$R48,1),1),0) + IF(IconRowSizes!$S48, $B$50*CEILING($G2/FLOOR($B$49/IconRowSizes!$S48,1),1),0) ->  | F2: =SUM(D2:E2) ->  | G2: =$C2*#REF! -> 
A3: GS_AGENT_STAT_WM | B3: =IconRowSizes!M49 ->  | C3: =IF(VLOOKUP(#REF!,#REF!,2,FALSE), 5*C4, 0) ->  | E3: =$B$50*IF(IconRowSizes!$N49, CEILING($G3/FLOOR($B$49/IconRowSizes!$N49,1),1),0) + IF(IconRowSizes!$O49, $B$50*CEILING($G3/FLOOR($B$49/IconRowSizes!$O49,1),1),0) + IF(IconRowSizes!$P49, $B$50*CEILING($G3/FLOOR($B$49/IconRowSizes!$P49,1),1),0) + IF(IconRowSizes!$Q49, $B$50*CEILING($G3/FLOOR($B$49/IconRowSizes!$Q49,1),1),0) + IF(IconRowSizes!$R49, $B$50*CEILING($G3/FLOOR($B$49/IconRowSizes!$R49,1),1),0) + IF(IconRowSizes!$S49, $B$50*CEILING($G3/FLOOR($B$49/IconRowSizes!$S49,1),1),0) ->  | F3: =SUM(D3:E3) ->  | G3: =$C3*#REF! -> 
A4: GX_SESSION_ENDPOINT | B4: =IconRowSizes!M50 ->  | C4: =IF(VLOOKUP(#REF!,#REF!,2,FALSE),C19*#REF!+#REF!,0) ->  | E4: =$B$50*IF(IconRowSizes!$N50, CEILING($G4/FLOOR($B$49/IconRowSizes!$N50,1),1),0) + IF(IconRowSizes!$O50, $B$50*CEILING($G4/FLOOR($B$49/IconRowSizes!$O50,1),1),0) + IF(IconRowSizes!$P50, $B$50*CEILING($G4/FLOOR($B$49/IconRowSizes!$P50,1),1),0) + IF(IconRowSizes!$Q50, $B$50*CEILING($G4/FLOOR($B$49/IconRowSizes!$Q50,1),1),0) + IF(IconRowSizes!$R50, $B$50*CEILING($G4/FLOOR($B$49/IconRowSizes!$R50,1),1),0) + IF(IconRowSizes!$S50, $B$50*CEILING($G4/FLOOR($B$49/IconRowSizes!$S50,1),1),0) ->  | G4: =$C4*#REF! -> 
A5: G_AGENT_STATE_HISTORY | B5: =IconRowSizes!M51 ->  | C5: =IF(VLOOKUP(#REF!,#REF!,2,FALSE),C4*(2*#REF! + 2 +#REF! *#REF!) + C19*#REF!,0) ->  | E5: =$B$50*IF(IconRowSizes!$N51, CEILING($G5/FLOOR($B$49/IconRowSizes!$N51,1),1),0) + IF(IconRowSizes!$O51, $B$50*CEILING($G5/FLOOR($B$49/IconRowSizes!$O51,1),1),0) + IF(IconRowSizes!$P51, $B$50*CEILING($G5/FLOOR($B$49/IconRowSizes!$P51,1),1),0) + IF(IconRowSizes!$Q51, $B$50*CEILING($G5/FLOOR($B$49/IconRowSizes!$Q51,1),1),0) + IF(IconRowSizes!$R51, $B$50*CEILING($G5/FLOOR($B$49/IconRowSizes!$R51,1),1),0) + IF(IconRowSizes!$S51, $B$50*CEILING($G5/FLOOR($B$49/IconRowSizes!$S51,1),1),0) ->  | G5: =$C5*#REF! -> 
A6: G_AGENT_STATE_RC | B6: =IconRowSizes!M52 ->  | C6: =IF(VLOOKUP(#REF!,#REF!,2,FALSE),ROUND(C5/C4,0),0) ->  | E6: =$B$50*IF(IconRowSizes!$N52, CEILING($G6/FLOOR($B$49/IconRowSizes!$N52,1),1),0) + IF(IconRowSizes!$O52, $B$50*CEILING($G6/FLOOR($B$49/IconRowSizes!$O52,1),1),0) + IF(IconRowSizes!$P52, $B$50*CEILING($G6/FLOOR($B$49/IconRowSizes!$P52,1),1),0) + IF(IconRowSizes!$Q52, $B$50*CEILING($G6/FLOOR($B$49/IconRowSizes!$Q52,1),1),0) + IF(IconRowSizes!$R52, $B$50*CEILING($G6/FLOOR($B$49/IconRowSizes!$R52,1),1),0) + IF(IconRowSizes!$S52, $B$50*CEILING($G6/FLOOR($B$49/IconRowSizes!$S52,1),1),0) ->  | G6: =$C6*#REF! -> 
A7: G_CALL | B7: =IconRowSizes!M53 ->  | C7: =IF(VLOOKUP(#REF!,#REF!,2,FALSE),C15,0) ->  | E7: =$B$50*IF(IconRowSizes!$N53, CEILING($G7/FLOOR($B$49/IconRowSizes!$N53,1),1),0) + IF(IconRowSizes!$O53, $B$50*CEILING($G7/FLOOR($B$49/IconRowSizes!$O53,1),1),0) + IF(IconRowSizes!$P53, $B$50*CEILING($G7/FLOOR($B$49/IconRowSizes!$P53,1),1),0) + IF(IconRowSizes!$Q53, $B$50*CEILING($G7/FLOOR($B$49/IconRowSizes!$Q53,1),1),0) + IF(IconRowSizes!$R53, $B$50*CEILING($G7/FLOOR($B$49/IconRowSizes!$R53,1),1),0) + IF(IconRowSizes!$S53, $B$50*CEILING($G7/FLOOR($B$49/IconRowSizes!$S53,1),1),0) ->  | G7: =$C7*#REF! -> 
A8: G_CALL_HISTORY | B8: =IconRowSizes!M54 ->  | C8: =IF(VLOOKUP(#REF!,#REF!,2,FALSE),2*C7,0) ->  | E8: =$B$50*IF(IconRowSizes!$N54, CEILING($G8/FLOOR($B$49/IconRowSizes!$N54,1),1),0) + IF(IconRowSizes!$O54, $B$50*CEILING($G8/FLOOR($B$49/IconRowSizes!$O54,1),1),0) + IF(IconRowSizes!$P54, $B$50*CEILING($G8/FLOOR($B$49/IconRowSizes!$P54,1),1),0) + IF(IconRowSizes!$Q54, $B$50*CEILING($G8/FLOOR($B$49/IconRowSizes!$Q54,1),1),0) + IF(IconRowSizes!$R54, $B$50*CEILING($G8/FLOOR($B$49/IconRowSizes!$R54,1),1),0) + IF(IconRowSizes!$S54, $B$50*CEILING($G8/FLOOR($B$49/IconRowSizes!$S54,1),1),0) ->  | G8: =$C8*#REF! -> 
A9: G_CALL_STAT | B9: =IconRowSizes!M55 ->  | C9: =C7 ->  | E9: =$B$50*IF(IconRowSizes!$N55, CEILING($G9/FLOOR($B$49/IconRowSizes!$N55,1),1),0) + IF(IconRowSizes!$O55, $B$50*CEILING($G9/FLOOR($B$49/IconRowSizes!$O55,1),1),0) + IF(IconRowSizes!$P55, $B$50*CEILING($G9/FLOOR($B$49/IconRowSizes!$P55,1),1),0) + IF(IconRowSizes!$Q55, $B$50*CEILING($G9/FLOOR($B$49/IconRowSizes!$Q55,1),1),0) + IF(IconRowSizes!$R55, $B$50*CEILING($G9/FLOOR($B$49/IconRowSizes!$R55,1),1),0) + IF(IconRowSizes!$S55, $B$50*CEILING($G9/FLOOR($B$49/IconRowSizes!$S55,1),1),0) ->  | G9: =$C9*#REF! -> 
A10: G_CALL_USERDATA | B10: =IconRowSizes!M56 ->  | C10: 0 | E10: =$B$50*IF(IconRowSizes!$N56, CEILING($G10/FLOOR($B$49/IconRowSizes!$N56,1),1),0) + IF(IconRowSizes!$O56, $B$50*CEILING($G10/FLOOR($B$49/IconRowSizes!$O56,1),1),0) + IF(IconRowSizes!$P56, $B$50*CEILING($G10/FLOOR($B$49/IconRowSizes!$P56,1),1),0) + IF(IconRowSizes!$Q56, $B$50*CEILING($G10/FLOOR($B$49/IconRowSizes!$Q56,1),1),0) + IF(IconRowSizes!$R56, $B$50*CEILING($G10/FLOOR($B$49/IconRowSizes!$R56,1),1),0) + IF(IconRowSizes!$S56, $B$50*CEILING($G10/FLOOR($B$49/IconRowSizes!$S56,1),1),0) ->  | F10: =SUM(D10:E10) ->  | G10: =$C10*#REF! -> 
A11: G_CALL_USERDATA_CUST | B11: =IconRowSizes!M57 ->  | C11: 0 | E11: =$B$50*IF(IconRowSizes!$N57, CEILING($G11/FLOOR($B$49/IconRowSizes!$N57,1),1),0) + IF(IconRowSizes!$O57, $B$50*CEILING($G11/FLOOR($B$49/IconRowSizes!$O57,1),1),0) + IF(IconRowSizes!$P57, $B$50*CEILING($G11/FLOOR($B$49/IconRowSizes!$P57,1),1),0) + IF(IconRowSizes!$Q57, $B$50*CEILING($G11/FLOOR($B$49/IconRowSizes!$Q57,1),1),0) + IF(IconRowSizes!$R57, $B$50*CEILING($G11/FLOOR($B$49/IconRowSizes!$R57,1),1),0) + IF(IconRowSizes!$S57, $B$50*CEILING($G11/FLOOR($B$49/IconRowSizes!$S57,1),1),0) ->  | G11: =$C11*#REF! -> 
A12: G_CALL_USERDATA_CUST1 | B12: =IconRowSizes!M58 ->  | C12: 0 | E12: =$B$50*IF(IconRowSizes!$N58, CEILING($G12/FLOOR($B$49/IconRowSizes!$N58,1),1),0) + IF(IconRowSizes!$O58, $B$50*CEILING($G12/FLOOR($B$49/IconRowSizes!$O58,1),1),0) + IF(IconRowSizes!$P58, $B$50*CEILING($G12/FLOOR($B$49/IconRowSizes!$P58,1),1),0) + IF(IconRowSizes!$Q58, $B$50*CEILING($G12/FLOOR($B$49/IconRowSizes!$Q58,1),1),0) + IF(IconRowSizes!$R58, $B$50*CEILING($G12/FLOOR($B$49/IconRowSizes!$R58,1),1),0) + IF(IconRowSizes!$S58, $B$50*CEILING($G12/FLOOR($B$49/IconRowSizes!$S58,1),1),0) ->  | G12: =$C12*#REF! -> 
A13: R_CALL_USERDATA_CUST3 | B13: =IconRowSizes!M59 ->  | C13: 0 | E13: =$B$50*IF(IconRowSizes!$N59, CEILING($G13/FLOOR($B$49/IconRowSizes!$N59,1),1),0) + IF(IconRowSizes!$O59, $B$50*CEILING($G13/FLOOR($B$49/IconRowSizes!$O59,1),1),0) + IF(IconRowSizes!$P59, $B$50*CEILING($G13/FLOOR($B$49/IconRowSizes!$P59,1),1),0) + IF(IconRowSizes!$Q59, $B$50*CEILING($G13/FLOOR($B$49/IconRowSizes!$Q59,1),1),0) + IF(IconRowSizes!$R59, $B$50*CEILING($G13/FLOOR($B$49/IconRowSizes!$R59,1),1),0) + IF(IconRowSizes!$S59, $B$50*CEILING($G13/FLOOR($B$49/IconRowSizes!$S59,1),1),0) -> 
A14: G_DND_HISTORY | B14: =IconRowSizes!M60 ->  | C14: =IF(VLOOKUP(#REF!,#REF!,2,FALSE),#REF!,0) ->  | E14: =$B$50*IF(IconRowSizes!$N60, CEILING($G14/FLOOR($B$49/IconRowSizes!$N60,1),1),0) + IF(IconRowSizes!$O60, $B$50*CEILING($G14/FLOOR($B$49/IconRowSizes!$O60,1),1),0) + IF(IconRowSizes!$P60, $B$50*CEILING($G14/FLOOR($B$49/IconRowSizes!$P60,1),1),0) + IF(IconRowSizes!$Q60, $B$50*CEILING($G14/FLOOR($B$49/IconRowSizes!$Q60,1),1),0) + IF(IconRowSizes!$R60, $B$50*CEILING($G14/FLOOR($B$49/IconRowSizes!$R60,1),1),0) + IF(IconRowSizes!$S60, $B$50*CEILING($G14/FLOOR($B$49/IconRowSizes!$S60,1),1),0) ->  | G14: =$C14*#REF! ->  | H14: Assuming that every agent press DND button once per day
A15: G_IR | B15: =IconRowSizes!M61 ->  | C15: =IF(VLOOKUP(#REF!,#REF!,2,FALSE),#REF!*(#REF! +#REF!),0) ->  | E15: =$B$50*IF(IconRowSizes!$N61, CEILING($G15/FLOOR($B$49/IconRowSizes!$N61,1),1),0) + IF(IconRowSizes!$O61, $B$50*CEILING($G15/FLOOR($B$49/IconRowSizes!$O61,1),1),0) + IF(IconRowSizes!$P61, $B$50*CEILING($G15/FLOOR($B$49/IconRowSizes!$P61,1),1),0) + IF(IconRowSizes!$Q61, $B$50*CEILING($G15/FLOOR($B$49/IconRowSizes!$Q61,1),1),0) + IF(IconRowSizes!$R61, $B$50*CEILING($G15/FLOOR($B$49/IconRowSizes!$R61,1),1),0) + IF(IconRowSizes!$S61, $B$50*CEILING($G15/FLOOR($B$49/IconRowSizes!$S61,1),1),0) ->  | G15: =$C15*#REF! -> 
A16: G_IR_HISTORY | B16: =IconRowSizes!M62 ->  | C16: =IF(VLOOKUP(#REF!,#REF!,2,FALSE),2*C15 +#REF! *#REF!,0) ->  | E16: =$B$50*IF(IconRowSizes!$N62, CEILING($G16/FLOOR($B$49/IconRowSizes!$N62,1),1),0) + IF(IconRowSizes!$O62, $B$50*CEILING($G16/FLOOR($B$49/IconRowSizes!$O62,1),1),0) + IF(IconRowSizes!$P62, $B$50*CEILING($G16/FLOOR($B$49/IconRowSizes!$P62,1),1),0) + IF(IconRowSizes!$Q62, $B$50*CEILING($G16/FLOOR($B$49/IconRowSizes!$Q62,1),1),0) + IF(IconRowSizes!$R62, $B$50*CEILING($G16/FLOOR($B$49/IconRowSizes!$R62,1),1),0) + IF(IconRowSizes!$S62, $B$50*CEILING($G16/FLOOR($B$49/IconRowSizes!$S62,1),1),0) ->  | G16: =$C16*#REF! -> 
A17: G_IS_LINK | B17: =IconRowSizes!M63 ->  | C17: =IF(VLOOKUP(#REF!,#REF!,2,FALSE),MAX(2*#REF!*(#REF!-1),0),0) ->  | E17: =$B$50*IF(IconRowSizes!$N63, CEILING($G17/FLOOR($B$49/IconRowSizes!$N63,1),1),0) + IF(IconRowSizes!$O63, $B$50*CEILING($G17/FLOOR($B$49/IconRowSizes!$O63,1),1),0) + IF(IconRowSizes!$P63, $B$50*CEILING($G17/FLOOR($B$49/IconRowSizes!$P63,1),1),0) + IF(IconRowSizes!$Q63, $B$50*CEILING($G17/FLOOR($B$49/IconRowSizes!$Q63,1),1),0) + IF(IconRowSizes!$R63, $B$50*CEILING($G17/FLOOR($B$49/IconRowSizes!$R63,1),1),0) + IF(IconRowSizes!$S63, $B$50*CEILING($G17/FLOOR($B$49/IconRowSizes!$S63,1),1),0) ->  | G17: =$C17*#REF! -> 
A18: G_IS_LINK_HISTORY | B18: =IconRowSizes!M64 ->  | C18: =IF(VLOOKUP(#REF!,#REF!,2,FALSE),C17,0) ->  | E18: =$B$50*IF(IconRowSizes!$N64, CEILING($G18/FLOOR($B$49/IconRowSizes!$N64,1),1),0) + IF(IconRowSizes!$O64, $B$50*CEILING($G18/FLOOR($B$49/IconRowSizes!$O64,1),1),0) + IF(IconRowSizes!$P64, $B$50*CEILING($G18/FLOOR($B$49/IconRowSizes!$P64,1),1),0) + IF(IconRowSizes!$Q64, $B$50*CEILING($G18/FLOOR($B$49/IconRowSizes!$Q64,1),1),0) + IF(IconRowSizes!$R64, $B$50*CEILING($G18/FLOOR($B$49/IconRowSizes!$R64,1),1),0) + IF(IconRowSizes!$S64, $B$50*CEILING($G18/FLOOR($B$49/IconRowSizes!$S64,1),1),0) ->  | G18: =$C18*#REF! -> 
A19: G_LOGIN_SESSION | B19: =IconRowSizes!M65 ->  | C19: =IF(VLOOKUP(#REF!,#REF!,2,FALSE),#REF!*#REF!,0) ->  | E19: =$B$50*IF(IconRowSizes!$N65, CEILING($G19/FLOOR($B$49/IconRowSizes!$N65,1),1),0) + IF(IconRowSizes!$O65, $B$50*CEILING($G19/FLOOR($B$49/IconRowSizes!$O65,1),1),0) + IF(IconRowSizes!$P65, $B$50*CEILING($G19/FLOOR($B$49/IconRowSizes!$P65,1),1),0) + IF(IconRowSizes!$Q65, $B$50*CEILING($G19/FLOOR($B$49/IconRowSizes!$Q65,1),1),0) + IF(IconRowSizes!$R65, $B$50*CEILING($G19/FLOOR($B$49/IconRowSizes!$R65,1),1),0) + IF(IconRowSizes!$S65, $B$50*CEILING($G19/FLOOR($B$49/IconRowSizes!$S65,1),1),0) ->  | G19: =$C19*#REF! -> 
A20: G_PARTY | B20: =IconRowSizes!M66 ->  | C20: =IF(VLOOKUP(#REF!,#REF!,2,FALSE),2*C7 +#REF!*(#REF! +#REF!),0) ->  | E20: =$B$50*IF(IconRowSizes!$N66, CEILING($G20/FLOOR($B$49/IconRowSizes!$N66,1),1),0) + IF(IconRowSizes!$O66, $B$50*CEILING($G20/FLOOR($B$49/IconRowSizes!$O66,1),1),0) + IF(IconRowSizes!$P66, $B$50*CEILING($G20/FLOOR($B$49/IconRowSizes!$P66,1),1),0) + IF(IconRowSizes!$Q66, $B$50*CEILING($G20/FLOOR($B$49/IconRowSizes!$Q66,1),1),0) + IF(IconRowSizes!$R66, $B$50*CEILING($G20/FLOOR($B$49/IconRowSizes!$R66,1),1),0) + IF(IconRowSizes!$S66, $B$50*CEILING($G20/FLOOR($B$49/IconRowSizes!$S66,1),1),0) ->  | G20: =$C20*#REF! -> 
A21: G_PARTY_HISTORY | B21: =IconRowSizes!M67 ->  | C21: =IF(VLOOKUP(#REF!,#REF!,2,FALSE),3*C20,0) ->  | E21: =$B$50*IF(IconRowSizes!$N67, CEILING($G21/FLOOR($B$49/IconRowSizes!$N67,1),1),0) + IF(IconRowSizes!$O67, $B$50*CEILING($G21/FLOOR($B$49/IconRowSizes!$O67,1),1),0) + IF(IconRowSizes!$P67, $B$50*CEILING($G21/FLOOR($B$49/IconRowSizes!$P67,1),1),0) + IF(IconRowSizes!$Q67, $B$50*CEILING($G21/FLOOR($B$49/IconRowSizes!$Q67,1),1),0) + IF(IconRowSizes!$R67, $B$50*CEILING($G21/FLOOR($B$49/IconRowSizes!$R67,1),1),0) + IF(IconRowSizes!$S67, $B$50*CEILING($G21/FLOOR($B$49/IconRowSizes!$S67,1),1),0) ->  | G21: =$C21*#REF! -> 
A22: G_PARTY_STAT | B22: =IconRowSizes!M68 ->  | C22: =IF(VLOOKUP(#REF!,#REF!,2,FALSE),C20,0) ->  | E22: =$B$50*IF(IconRowSizes!$N68, CEILING($G22/FLOOR($B$49/IconRowSizes!$N68,1),1),0) + IF(IconRowSizes!$O68, $B$50*CEILING($G22/FLOOR($B$49/IconRowSizes!$O68,1),1),0) + IF(IconRowSizes!$P68, $B$50*CEILING($G22/FLOOR($B$49/IconRowSizes!$P68,1),1),0) + IF(IconRowSizes!$Q68, $B$50*CEILING($G22/FLOOR($B$49/IconRowSizes!$Q68,1),1),0) + IF(IconRowSizes!$R68, $B$50*CEILING($G22/FLOOR($B$49/IconRowSizes!$R68,1),1),0) + IF(IconRowSizes!$S68, $B$50*CEILING($G22/FLOOR($B$49/IconRowSizes!$S68,1),1),0) ->  | G22: =$C22*#REF! -> 
A23: G_ROUTE_RESULT | B23: =IconRowSizes!M69 ->  | C23: =IF(VLOOKUP(#REF!,#REF!,2,FALSE),#REF!*#REF!,0) ->  | E23: =$B$50*IF(IconRowSizes!$N69, CEILING($G23/FLOOR($B$49/IconRowSizes!$N69,1),1),0) + IF(IconRowSizes!$O69, $B$50*CEILING($G23/FLOOR($B$49/IconRowSizes!$O69,1),1),0) + IF(IconRowSizes!$P69, $B$50*CEILING($G23/FLOOR($B$49/IconRowSizes!$P69,1),1),0) + IF(IconRowSizes!$Q69, $B$50*CEILING($G23/FLOOR($B$49/IconRowSizes!$Q69,1),1),0) + IF(IconRowSizes!$R69, $B$50*CEILING($G23/FLOOR($B$49/IconRowSizes!$R69,1),1),0) + IF(IconRowSizes!$S69, $B$50*CEILING($G23/FLOOR($B$49/IconRowSizes!$S69,1),1),0) ->  | G23: =$C23*#REF! -> 
A24: G_SECURE_USERDATA_HISTORY | B24: =IconRowSizes!M70 ->  | C24: 0 | E24: =$B$50*IF(IconRowSizes!$N70, CEILING($G24/FLOOR($B$49/IconRowSizes!$N70,1),1),0) + IF(IconRowSizes!$O70, $B$50*CEILING($G24/FLOOR($B$49/IconRowSizes!$O70,1),1),0) + IF(IconRowSizes!$P70, $B$50*CEILING($G24/FLOOR($B$49/IconRowSizes!$P70,1),1),0) + IF(IconRowSizes!$Q70, $B$50*CEILING($G24/FLOOR($B$49/IconRowSizes!$Q70,1),1),0) + IF(IconRowSizes!$R70, $B$50*CEILING($G24/FLOOR($B$49/IconRowSizes!$R70,1),1),0) + IF(IconRowSizes!$S70, $B$50*CEILING($G24/FLOOR($B$49/IconRowSizes!$S70,1),1),0) ->  | G24: =$C24*#REF! ->  | H24: The table covered by the G_USEDATA_HISTORY table
A25: G_USERDATA_HISTORY | B25: =IconRowSizes!M71 ->  | C25: =IF(VLOOKUP(#REF!,#REF!,2,FALSE),C7*#REF!*#REF!,0) ->  | E25: =$B$50*IF(IconRowSizes!$N71, CEILING($G25/FLOOR($B$49/IconRowSizes!$N71,1),1),0) + IF(IconRowSizes!$O71, $B$50*CEILING($G25/FLOOR($B$49/IconRowSizes!$O71,1),1),0) + IF(IconRowSizes!$P71, $B$50*CEILING($G25/FLOOR($B$49/IconRowSizes!$P71,1),1),0) + IF(IconRowSizes!$Q71, $B$50*CEILING($G25/FLOOR($B$49/IconRowSizes!$Q71,1),1),0) + IF(IconRowSizes!$R71, $B$50*CEILING($G25/FLOOR($B$49/IconRowSizes!$R71,1),1),0) + IF(IconRowSizes!$S71, $B$50*CEILING($G25/FLOOR($B$49/IconRowSizes!$S71,1),1),0) ->  | G25: =$C25*#REF! -> 
A26: G_VIRTUAL_QUEUE | B26: =IconRowSizes!M72 ->  | C26: =#REF!*#REF! ->  | E26: =$B$50*IF(IconRowSizes!$N72, CEILING($G26/FLOOR($B$49/IconRowSizes!$N72,1),1),0) + IF(IconRowSizes!$O72, $B$50*CEILING($G26/FLOOR($B$49/IconRowSizes!$O72,1),1),0) + IF(IconRowSizes!$P72, $B$50*CEILING($G26/FLOOR($B$49/IconRowSizes!$P72,1),1),0) + IF(IconRowSizes!$Q72, $B$50*CEILING($G26/FLOOR($B$49/IconRowSizes!$Q72,1),1),0) + IF(IconRowSizes!$R72, $B$50*CEILING($G26/FLOOR($B$49/IconRowSizes!$R72,1),1),0) + IF(IconRowSizes!$S72, $B$50*CEILING($G26/FLOOR($B$49/IconRowSizes!$S72,1),1),0) ->  | G26: =$C26*#REF! -> 
A27: GOX_CHAIN_CALL | B27: =IconRowSizes!M73 ->  | C27: =IF(VLOOKUP(#REF!,#REF!,2,FALSE),#REF!,0) ->  | E27: =$B$50*IF(IconRowSizes!$N73, CEILING($G27/FLOOR($B$49/IconRowSizes!$N73,1),1),0) + IF(IconRowSizes!$O73, $B$50*CEILING($G27/FLOOR($B$49/IconRowSizes!$O73,1),1),0) + IF(IconRowSizes!$P73, $B$50*CEILING($G27/FLOOR($B$49/IconRowSizes!$P73,1),1),0) + IF(IconRowSizes!$Q73, $B$50*CEILING($G27/FLOOR($B$49/IconRowSizes!$Q73,1),1),0) + IF(IconRowSizes!$R73, $B$50*CEILING($G27/FLOOR($B$49/IconRowSizes!$R73,1),1),0) + IF(IconRowSizes!$S73, $B$50*CEILING($G27/FLOOR($B$49/IconRowSizes!$S73,1),1),0) ->  | G27: =$C27*#REF! -> 
A28: GO_CAMPAIGN | B28: =IconRowSizes!M74 ->  | C28: =IF(VLOOKUP(#REF!,#REF!,2,FALSE),#REF!,0) ->  | E28: =$B$50*IF(IconRowSizes!$N74, CEILING($G28/FLOOR($B$49/IconRowSizes!$N74,1),1),0) + IF(IconRowSizes!$O74, $B$50*CEILING($G28/FLOOR($B$49/IconRowSizes!$O74,1),1),0) + IF(IconRowSizes!$P74, $B$50*CEILING($G28/FLOOR($B$49/IconRowSizes!$P74,1),1),0) + IF(IconRowSizes!$Q74, $B$50*CEILING($G28/FLOOR($B$49/IconRowSizes!$Q74,1),1),0) + IF(IconRowSizes!$R74, $B$50*CEILING($G28/FLOOR($B$49/IconRowSizes!$R74,1),1),0) + IF(IconRowSizes!$S74, $B$50*CEILING($G28/FLOOR($B$49/IconRowSizes!$S74,1),1),0) ->  | G28: =$C28*#REF! -> 
A29: GO_CAMPAIGNHISTORY | B29: =IconRowSizes!M75 ->  | C29: =IF(VLOOKUP(#REF!,#REF!,2,FALSE),3*C28,0) ->  | E29: =$B$50*IF(IconRowSizes!$N75, CEILING($G29/FLOOR($B$49/IconRowSizes!$N75,1),1),0) + IF(IconRowSizes!$O75, $B$50*CEILING($G29/FLOOR($B$49/IconRowSizes!$O75,1),1),0) + IF(IconRowSizes!$P75, $B$50*CEILING($G29/FLOOR($B$49/IconRowSizes!$P75,1),1),0) + IF(IconRowSizes!$Q75, $B$50*CEILING($G29/FLOOR($B$49/IconRowSizes!$Q75,1),1),0) + IF(IconRowSizes!$R75, $B$50*CEILING($G29/FLOOR($B$49/IconRowSizes!$R75,1),1),0) + IF(IconRowSizes!$S75, $B$50*CEILING($G29/FLOOR($B$49/IconRowSizes!$S75,1),1),0) ->  | G29: =$C29*#REF! -> 
A30: GO_CAMPPROP_HIST | B30: =IconRowSizes!M76 ->  | C30: =IF(VLOOKUP(#REF!,#REF!,2,FALSE),2*C28,0) ->  | E30: =$B$50*IF(IconRowSizes!$N76, CEILING($G30/FLOOR($B$49/IconRowSizes!$N76,1),1),0) + IF(IconRowSizes!$O76, $B$50*CEILING($G30/FLOOR($B$49/IconRowSizes!$O76,1),1),0) + IF(IconRowSizes!$P76, $B$50*CEILING($G30/FLOOR($B$49/IconRowSizes!$P76,1),1),0) + IF(IconRowSizes!$Q76, $B$50*CEILING($G30/FLOOR($B$49/IconRowSizes!$Q76,1),1),0) + IF(IconRowSizes!$R76, $B$50*CEILING($G30/FLOOR($B$49/IconRowSizes!$R76,1),1),0) + IF(IconRowSizes!$S76, $B$50*CEILING($G30/FLOOR($B$49/IconRowSizes!$S76,1),1),0) ->  | G30: =$C30*#REF! -> 
A31: GO_CHAIN | B31: =IconRowSizes!M77 ->  | C31: =IF(VLOOKUP(#REF!,#REF!,2,FALSE),CEILING(2*#REF!/#REF!,1),0) ->  | E31: =$B$50*IF(IconRowSizes!$N77, CEILING($G31/FLOOR($B$49/IconRowSizes!$N77,1),1),0) + IF(IconRowSizes!$O77, $B$50*CEILING($G31/FLOOR($B$49/IconRowSizes!$O77,1),1),0) + IF(IconRowSizes!$P77, $B$50*CEILING($G31/FLOOR($B$49/IconRowSizes!$P77,1),1),0) + IF(IconRowSizes!$Q77, $B$50*CEILING($G31/FLOOR($B$49/IconRowSizes!$Q77,1),1),0) + IF(IconRowSizes!$R77, $B$50*CEILING($G31/FLOOR($B$49/IconRowSizes!$R77,1),1),0) + IF(IconRowSizes!$S77, $B$50*CEILING($G31/FLOOR($B$49/IconRowSizes!$S77,1),1),0) ->  | G31: =$C31*#REF! ->  | H31: Assuming that as average only half of a chain's records are processed to reach the target (whatever it means)
A32: GO_CHAINREC_HIST | B32: =IconRowSizes!M78 ->  | C32: =IF(VLOOKUP(#REF!,#REF!,2,FALSE),4*C31*CEILING(#REF!/2,1),0) ->  | E32: =$B$50*IF(IconRowSizes!$N78, CEILING($G32/FLOOR($B$49/IconRowSizes!$N78,1),1),0) + IF(IconRowSizes!$O78, $B$50*CEILING($G32/FLOOR($B$49/IconRowSizes!$O78,1),1),0) + IF(IconRowSizes!$P78, $B$50*CEILING($G32/FLOOR($B$49/IconRowSizes!$P78,1),1),0) + IF(IconRowSizes!$Q78, $B$50*CEILING($G32/FLOOR($B$49/IconRowSizes!$Q78,1),1),0) + IF(IconRowSizes!$R78, $B$50*CEILING($G32/FLOOR($B$49/IconRowSizes!$R78,1),1),0) + IF(IconRowSizes!$S78, $B$50*CEILING($G32/FLOOR($B$49/IconRowSizes!$S78,1),1),0) ->  | G32: =$C32*#REF! ->  | H32: Assuming four changes per chain
A33: GO_CUSTOM_FIELDS | B33: =IconRowSizes!M79 ->  | C33: =IF(VLOOKUP(#REF!,#REF!,2,FALSE),C36*#REF!,0) ->  | E33: =$B$50*IF(IconRowSizes!$N79, CEILING($G33/FLOOR($B$49/IconRowSizes!$N79,1),1),0) + IF(IconRowSizes!$O79, $B$50*CEILING($G33/FLOOR($B$49/IconRowSizes!$O79,1),1),0) + IF(IconRowSizes!$P79, $B$50*CEILING($G33/FLOOR($B$49/IconRowSizes!$P79,1),1),0) + IF(IconRowSizes!$Q79, $B$50*CEILING($G33/FLOOR($B$49/IconRowSizes!$Q79,1),1),0) + IF(IconRowSizes!$R79, $B$50*CEILING($G33/FLOOR($B$49/IconRowSizes!$R79,1),1),0) + IF(IconRowSizes!$S79, $B$50*CEILING($G33/FLOOR($B$49/IconRowSizes!$S79,1),1),0) ->  | G33: =$C33*#REF! -> 
A34: GO_FIELDHIST | B34: =IconRowSizes!M80 ->  | C34: =IF(VLOOKUP(#REF!,#REF!,2,FALSE),C36*(#REF! +#REF!),0) ->  | E34: =$B$50*IF(IconRowSizes!$N80, CEILING($G34/FLOOR($B$49/IconRowSizes!$N80,1),1),0) + IF(IconRowSizes!$O80, $B$50*CEILING($G34/FLOOR($B$49/IconRowSizes!$O80,1),1),0) + IF(IconRowSizes!$P80, $B$50*CEILING($G34/FLOOR($B$49/IconRowSizes!$P80,1),1),0) + IF(IconRowSizes!$Q80, $B$50*CEILING($G34/FLOOR($B$49/IconRowSizes!$Q80,1),1),0) + IF(IconRowSizes!$R80, $B$50*CEILING($G34/FLOOR($B$49/IconRowSizes!$R80,1),1),0) + IF(IconRowSizes!$S80, $B$50*CEILING($G34/FLOOR($B$49/IconRowSizes!$S80,1),1),0) ->  | G34: =$C34*#REF! -> 
A35: GO_METRICS | B35: =IconRowSizes!M81 ->  | C35: =IF(VLOOKUP(#REF!,#REF!,2,FALSE),CEILING(2*$B$51*#REF!*(2*#REF!+3)+#REF!*(#REF!+3),1),0) ->  | E35: =$B$50*IF(IconRowSizes!$N81, CEILING($G35/FLOOR($B$49/IconRowSizes!$N81,1),1),0) + IF(IconRowSizes!$O81, $B$50*CEILING($G35/FLOOR($B$49/IconRowSizes!$O81,1),1),0) + IF(IconRowSizes!$P81, $B$50*CEILING($G35/FLOOR($B$49/IconRowSizes!$P81,1),1),0) + IF(IconRowSizes!$Q81, $B$50*CEILING($G35/FLOOR($B$49/IconRowSizes!$Q81,1),1),0) + IF(IconRowSizes!$R81, $B$50*CEILING($G35/FLOOR($B$49/IconRowSizes!$R81,1),1),0) + IF(IconRowSizes!$S81, $B$50*CEILING($G35/FLOOR($B$49/IconRowSizes!$S81,1),1),0) ->  | G35: =$C35*#REF! -> 
A36: GO_RECORD | B36: =IconRowSizes!M82 ->  | C36: =IF(VLOOKUP(#REF!,#REF!,2,FALSE),C31*#REF!,0) ->  | E36: =$B$50*IF(IconRowSizes!$N82, CEILING($G36/FLOOR($B$49/IconRowSizes!$N82,1),1),0) + IF(IconRowSizes!$O82, $B$50*CEILING($G36/FLOOR($B$49/IconRowSizes!$O82,1),1),0) + IF(IconRowSizes!$P82, $B$50*CEILING($G36/FLOOR($B$49/IconRowSizes!$P82,1),1),0) + IF(IconRowSizes!$Q82, $B$50*CEILING($G36/FLOOR($B$49/IconRowSizes!$Q82,1),1),0) + IF(IconRowSizes!$R82, $B$50*CEILING($G36/FLOOR($B$49/IconRowSizes!$R82,1),1),0) + IF(IconRowSizes!$S82, $B$50*CEILING($G36/FLOOR($B$49/IconRowSizes!$S82,1),1),0) ->  | G36: =$C36*#REF! ->  | H36: Assuming that there is 1-1 correspondence between GO_RECORD rows and outbound calls (e.g., if an outpound record has been processed twice during the day, there will be two rows in the GO_RECORD table)
A37: GO_SECURE_FIELDS | B37: =IconRowSizes!M83 ->  | C37: 0 | E37: =$B$50*IF(IconRowSizes!$N83, CEILING($G37/FLOOR($B$49/IconRowSizes!$N83,1),1),0) + IF(IconRowSizes!$O83, $B$50*CEILING($G37/FLOOR($B$49/IconRowSizes!$O83,1),1),0) + IF(IconRowSizes!$P83, $B$50*CEILING($G37/FLOOR($B$49/IconRowSizes!$P83,1),1),0) + IF(IconRowSizes!$Q83, $B$50*CEILING($G37/FLOOR($B$49/IconRowSizes!$Q83,1),1),0) + IF(IconRowSizes!$R83, $B$50*CEILING($G37/FLOOR($B$49/IconRowSizes!$R83,1),1),0) + IF(IconRowSizes!$S83, $B$50*CEILING($G37/FLOOR($B$49/IconRowSizes!$S83,1),1),0) ->  | H37: Those two tables covered by the G_CUSTOM_FIELDS
A38: GO_SEC_FIELDHIST | B38: =IconRowSizes!M84 ->  | C38: 0 | E38: =$B$50*IF(IconRowSizes!$N84, CEILING($G38/FLOOR($B$49/IconRowSizes!$N84,1),1),0) + IF(IconRowSizes!$O84, $B$50*CEILING($G38/FLOOR($B$49/IconRowSizes!$O84,1),1),0) + IF(IconRowSizes!$P84, $B$50*CEILING($G38/FLOOR($B$49/IconRowSizes!$P84,1),1),0) + IF(IconRowSizes!$Q84, $B$50*CEILING($G38/FLOOR($B$49/IconRowSizes!$Q84,1),1),0) + IF(IconRowSizes!$R84, $B$50*CEILING($G38/FLOOR($B$49/IconRowSizes!$R84,1),1),0) + IF(IconRowSizes!$S84, $B$50*CEILING($G38/FLOOR($B$49/IconRowSizes!$S84,1),1),0) ->  | H38: and GO_FIELDHIST tables respectively
A39: Total | C39: =SUM(C2:C38) + SUM(C42:C45) ->  | D39: =SUM(D2:D38) + SUM(D42:D45) ->  | E39: =SUM(E2:E38)+SUM(E42:E45) -> 
A41: Userdata Table | B41: Row Size | C41: Rows Per Day | D41: Table Size Per Year | E41: Index Size Per Year | G41: Rows Per Year | H41: Comment
A42: G_CALL_USERDATA | B42: =IconRowSizes!M56 - 258*(10-#REF!) ->  | C42: =IF(VLOOKUP(#REF!,#REF!,2,FALSE),IF(#REF! > 0, C7,0),0) ->  | D42: =$B$50*CEILING($G42/FLOOR($B$48/$B42,1),1) ->  | E42: =$B$50*IF(IconRowSizes!$N56, CEILING($G42/FLOOR($B$49/IconRowSizes!$N56,1),1),0) + IF(IconRowSizes!$O56, $B$50*CEILING($G42/FLOOR($B$49/IconRowSizes!$O56,1),1),0) + IF(IconRowSizes!$P56, $B$50*CEILING($G42/FLOOR($B$49/IconRowSizes!$P56,1),1),0) + IF(IconRowSizes!$Q56, $B$50*CEILING($G42/FLOOR($B$49/IconRowSizes!$Q56,1),1),0) + IF(IconRowSizes!$R56, $B$50*CEILING($G42/FLOOR($B$49/IconRowSizes!$R56,1),1),0) + IF(IconRowSizes!$S56, $B$50*CEILING($G42/FLOOR($B$49/IconRowSizes!$S56,1),1),0) ->  | F42: =SUM(D42:E42) ->  | G42: =$C42*#REF! -> 
A43: G_CALL_USERDATA_CUST1 | B43: =IconRowSizes!M57 ->  | C43: =IF(VLOOKUP(#REF!,#REF!,2,FALSE),IF(#REF! > 0, C7, 0),0) ->  | D43: =$B$50*CEILING($G43/FLOOR($B$48/$B43,1),1) ->  | E43: =$B$50*IF(IconRowSizes!$N57, CEILING($G43/FLOOR($B$49/IconRowSizes!$N57,1),1),0) + IF(IconRowSizes!$O57, $B$50*CEILING($G43/FLOOR($B$49/IconRowSizes!$O57,1),1),0) + IF(IconRowSizes!$P57, $B$50*CEILING($G43/FLOOR($B$49/IconRowSizes!$P57,1),1),0) + IF(IconRowSizes!$Q57, $B$50*CEILING($G43/FLOOR($B$49/IconRowSizes!$Q57,1),1),0) + IF(IconRowSizes!$R57, $B$50*CEILING($G43/FLOOR($B$49/IconRowSizes!$R57,1),1),0) + IF(IconRowSizes!$S57, $B$50*CEILING($G43/FLOOR($B$49/IconRowSizes!$S57,1),1),0) ->  | F43: =SUM(D43:E43) ->  | G43: =$C43*#REF! -> 
A44: G_CALL_USERDATA_CUST2 | B44: =IconRowSizes!M58 ->  | C44: =IF(VLOOKUP(#REF!,#REF!,2,FALSE),IF(#REF! > 19, C7, 0),0) ->  | D44: =$B$50*CEILING($G44/FLOOR($B$48/$B44,1),1) ->  | E44: =$B$50*IF(IconRowSizes!$N58, CEILING($G44/FLOOR($B$49/IconRowSizes!$N58,1),1),0) + IF(IconRowSizes!$O58, $B$50*CEILING($G44/FLOOR($B$49/IconRowSizes!$O58,1),1),0) + IF(IconRowSizes!$P58, $B$50*CEILING($G44/FLOOR($B$49/IconRowSizes!$P58,1),1),0) + IF(IconRowSizes!$Q58, $B$50*CEILING($G44/FLOOR($B$49/IconRowSizes!$Q58,1),1),0) + IF(IconRowSizes!$R58, $B$50*CEILING($G44/FLOOR($B$49/IconRowSizes!$R58,1),1),0) + IF(IconRowSizes!$S58, $B$50*CEILING($G44/FLOOR($B$49/IconRowSizes!$S58,1),1),0) ->  | F44: =SUM(D44:E44) ->  | G44: =$C44*#REF! -> 
A45: G_CALL_USERDATA_CUST3 | B45: =IconRowSizes!M59 ->  | C45: =IF(VLOOKUP(#REF!,#REF!,2,FALSE),IF(#REF! > 38, C8, 0),0) ->  | D45: =$B$50*CEILING($G45/FLOOR($B$48/$B45,1),1) ->  | E45: =$B$50*IF(IconRowSizes!$N59, CEILING($G45/FLOOR($B$49/IconRowSizes!$N59,1),1),0) + IF(IconRowSizes!$O59, $B$50*CEILING($G45/FLOOR($B$49/IconRowSizes!$O59,1),1),0) + IF(IconRowSizes!$P59, $B$50*CEILING($G45/FLOOR($B$49/IconRowSizes!$P59,1),1),0) + IF(IconRowSizes!$Q59, $B$50*CEILING($G45/FLOOR($B$49/IconRowSizes!$Q59,1),1),0) + IF(IconRowSizes!$R59, $B$50*CEILING($G45/FLOOR($B$49/IconRowSizes!$R59,1),1),0) + IF(IconRowSizes!$S59, $B$50*CEILING($G45/FLOOR($B$49/IconRowSizes!$S59,1),1),0) ->  | F45: =SUM(D45:E45) ->  | G45: =$C45*#REF! -> 
A47: Helpers | B47: Value
A48: Block Free Size | B48: =IconRowSizes!$Q$2 -> 
A49: Index Block Free Size | B49: =IconRowSizes!$R$2 -> 
A50: Block Size | B50: =#REF! -> 
A51: Metrics Snapshots Per Day | B51: =3600*#REF!/#REF! -> 

Sheet IconRowSizes (hidden)
A1: Data Type | B1: bigint | C1: int | D1: smallint | E1: number (16) | F1: number (19) | G1: number (20) | H1: datetime | I1: varchar(50) | J1: varchar(64) | K1: varchar(128) | L1: varchar(255) | M1: Block Header | N1: Row Header | O1: Index Block Header | P1: Index Row Header | Q1: Block Free Size | R1: Index Block Free Size
A2: Bytes (Current) | B2: =CHOOSE(VLOOKUP(#REF!,#REF!,2,FALSE),B3,B4,B5) ->  | C2: =CHOOSE(VLOOKUP(#REF!,#REF!,2,FALSE),C3,C4,C5) ->  | D2: =CHOOSE(VLOOKUP(#REF!,#REF!,2,FALSE),D3,D4,D5) ->  | E2: =CHOOSE(VLOOKUP(#REF!,#REF!,2,FALSE),E3,E4,E5) ->  | F2: =CHOOSE(VLOOKUP(#REF!,#REF!,2,FALSE),F3,F4,F5) ->  | G2: =CHOOSE(VLOOKUP(#REF!,#REF!,2,FALSE),G3,G4,G5) ->  | H2: =CHOOSE(VLOOKUP(#REF!,#REF!,2,FALSE),H3,H4,H5) ->  | I2: =CHOOSE(VLOOKUP(#REF!,#REF!,2,FALSE),I3,I4,I5) ->  | J2: =CHOOSE(VLOOKUP(#REF!,#REF!,2,FALSE),J3,J4,J5) ->  | K2: =CHOOSE(VLOOKUP(#REF!,#REF!,2,FALSE),K3,K4,K5) ->  | L2: =CHOOSE(VLOOKUP(#REF!,#REF!,2,FALSE),L3,L4,L5) ->  | M2: =CHOOSE(VLOOKUP(#REF!,#REF!,2,FALSE),M3,M4,M5) ->  | N2: =CHOOSE(VLOOKUP(#REF!,#REF!,2,FALSE),N3,N4,N5) ->  | O2: =CHOOSE(VLOOKUP(#REF!,#REF!,2,FALSE),O3,O4,O5) ->  | P2: =CHOOSE(VLOOKUP(#REF!,#REF!,2,FALSE),P3,P4,P5) ->  | Q2: =FLOOR((#REF! - M2)*(1-#REF!),1) ->  | R2: =FLOOR((#REF! - O2)*(1-#REF!),1) -> 
A3: Bytes (Oracle) | B3: 11 | C3: 6 | D3: 4 | E3: 9 | F3: 11 | G3: 11 | H3: 11 | I3: 53 | J3: 65 | K3: 129 | L3: 258 | M3: 84 | N3: 3 | O3: 161 | P3: 8 | U3: Header estimates for Oracle could be outdated (taken from several sources, including Oracle 7 documentation). Hopefully, progress should save memory, don't waste it.
A4: Bytes (MSSQL) | B4: 8 | C4: 4 | D4: 2 | E4: 9 | F4: 9 | G4: 13 | H4: 8 | I4: 52 | J4: 66 | K4: 130 | L4: 257 | M4: 0 | N4: 15 | O4: 0 | P4: 16
A5: Bytes (DB2) | B5: 8 | C5: 4 | D5: 2 | E5: 9 | F5: 10 | G5: 11 | H5: 10 | I5: 52 | J5: 66 | K5: 130 | L5: 258 | M5: 84 | N5: 3 | O5: 161 | P5: 8 | U5: For DB2 header estimates were just forcibly set to those of Oracle
A7: Table | B7: smallint | C7: integer | D7: bigint | E7: number(16) | F7: number(19) | G7: number(20) | H7: datetime | I7: varchar(50) | J7: varchar(64) | K7: varchar(128) | L7: varchar(255) | M7: Row Size | N7: IES 1 | O7: IES 2 | P7: IES 3 | Q7: IES 4 | R7: IES 5 | S7: IES 6 | T7: IES 7
A8: GCX_AGENT_PLACE | B8: 0 | C8: 13 | D8: 2 | E8: 1 | F8: 0 | G8: 0 | H8: 3 | I8: 0 | J8: 0 | K8: 0 | L8: 0 | M8: =13+B2*B8 + C2*C8 + D2*D8 + E2*E8 + F2*F8 + G2*G8 + H2*H8 + I2*I8 + J2*J8 + K2*K8 + L2*L8 ->  | N8: =P2+E2 ->  | O8: =P2+C2+C2 ->  | P8: 0 | Q8: 0 | R8: 0 | S8: 0
A9: GCX_CAMPGROUP_INFO | B9: 0 | C9: 23 | D9: 2 | E9: 1 | F9: 0 | G9: 0 | H9: 3 | I9: 0 | J9: 0 | K9: 0 | L9: 1 | M9: =13+B2*B9 + C2*C9 + D2*D9 + E2*E9 + F2*F9 + G2*G9 + H2*H9 + I2*I9 + J2*J9 + K2*K9 + L2*L9 ->  | N9: =P2+E2 ->  | O9: =P2+C2+C2+C2 ->  | P9: 0 | Q9: 0 | R9: 0 | S9: 0
A10: GCX_CAMPLIST_INFO | B10: 0 | C10: 13 | D10: 2 | E10: 1 | F10: 0 | G10: 0 | H10: 3 | I10: 0 | J10: 0 | K10: 0 | L10: 0 | M10: =13+B2*B10 + C2*C10 + D2*D10 + E2*E10 + F2*F10 + G2*G10 + H2*H10 + I2*I10 + J2*J10 + K2*K10 + L2*L10 ->  | N10: =P2+E2 ->  | O10: =P2+C2+C2+C2 ->  | P10: 0 | Q10: 0 | R10: 0 | S10: 0
A11: GCX_ENDPOINT_PLACE | B11: 0 | C11: 13 | D11: 2 | E11: 1 | F11: 0 | G11: 0 | H11: 3 | I11: 0 | J11: 0 | K11: 0 | L11: 0 | M11: =13+B2*B11 + C2*C11 + D2*D11 + E2*E11 + F2*F11 + G2*G11 + H2*H11 + I2*I11 + J2*J11 + K2*K11 + L2*L11 ->  | N11: =P2+E2 ->  | O11: =P2+C2+C2+C2 ->  | P11: 0 | Q11: 0 | R11: 0 | S11: 0
A12: GCX_FORMAT_FIELD | B12: 0 | C12: 13 | D12: 2 | E12: 1 | F12: 0 | G12: 0 | H12: 3 | I12: 0 | J12: 0 | K12: 0 | L12: 0 | M12: =13+B2*B12 + C2*C12 + D2*D12 + E2*E12 + F2*F12 + G2*G12 + H2*H12 + I2*I12 + J2*J12 + K2*K12 + L2*L12 ->  | N12: =P2+E2 ->  | O12: =P2+C2+C2+C2 ->  | P12: 0 | Q12: 0 | R12: 0 | S12: 0
A13: GCX_GROUP_AGENT | B13: 0 | C13: 13 | D13: 2 | E13: 1 | F13: 0 | G13: 0 | H13: 3 | I13: 0 | J13: 0 | K13: 0 | L13: 0 | M13: =13+B2*B13 + C2*C13 + D2*D13 + E2*E13 + F2*F13 + G2*G13 + H2*H13 + I2*I13 + J2*J13 + K2*K13 + L2*L13 ->  | N13: =P2+E2 ->  | O13: =P2+C2+C2+C2 ->  | P13: 0 | Q13: 0 | R13: 0 | S13: 0
A14: GCX_GROUP_ENDPOINT | B14: 0 | C14: 13 | D14: 2 | E14: 1 | F14: 0 | G14: 0 | H14: 3 | I14: 0 | J14: 0 | K14: 0 | L14: 0 | M14: =13+B2*B14 + C2*C14 + D2*D14 + E2*E14 + F2*F14 + G2*G14 + H2*H14 + I2*I14 + J2*J14 + K2*K14 + L2*L14 ->  | N14: =P2+E2 ->  | O14: =P2+C2+C2+C2 ->  | P14: 0 | Q14: 0 | R14: 0 | S14: 0
A15: GCX_GROUP_PLACE | B15: 0 | C15: 13 | D15: 2 | E15: 1 | F15: 0 | G15: 0 | H15: 3 | I15: 0 | J15: 0 | K15: 0 | L15: 0 | M15: =13+B2*B15 + C2*C15 + D2*D15 + E2*E15 + F2*F15 + G2*G15 + H2*H15 + I2*I15 + J2*J15 + K2*K15 + L2*L15 ->  | N15: =P2+E2 ->  | O15: =P2+C2+C2+C2 ->  | P15: 0 | Q15: 0 | R15: 0 | S15: 0
A16: GCX_GROUP_ROUTEDN | B16: 0 | C16: 13 | D16: 2 | E16: 1 | F16: 0 | G16: 0 | H16: 3 | I16: 0 | J16: 0 | K16: 0 | L16: 0 | M16: =13+B2*B16 + C2*C16 + D2*D16 + E2*E16 + F2*F16 + G2*G16 + H2*H16 + I2*I16 + J2*J16 + K2*K16 + L2*L16 ->  | N16: =P2+E2 ->  | O16: =P2+C2+C2+C2 ->  | P16: 0 | Q16: 0 | R16: 0 | S16: 0
A17: GCX_LIST_TREATMENT | B17: 0 | C17: 13 | D17: 2 | E17: 1 | F17: 0 | G17: 0 | H17: 3 | I17: 0 | J17: 0 | K17: 0 | L17: 0 | M17: =13+B2*B17 + C2*C17 + D2*D17 + E2*E17 + F2*F17 + G2*G17 + H2*H17 + I2*I17 + J2*J17 + K2*K17 + L2*L17 ->  | N17: =P2+E2 ->  | O17: =P2+C2+C2+C2 ->  | P17: 0 | Q17: 0 | R17: 0 | S17: 0
A18: GCX_LOGIN_INFO | B18: 0 | C18: 14 | D18: 2 | E18: 1 | F18: 0 | G18: 0 | H18: 3 | I18: 0 | J18: 0 | K18: 0 | L18: 0 | M18: =13+B2*B18 + C2*C18 + D2*D18 + E2*E18 + F2*F18 + G2*G18 + H2*H18 + I2*I18 + J2*J18 + K2*K18 + L2*L18 ->  | N18: =P2+E2 ->  | O18: =P2+C2+C2+C2 ->  | P18: 0 | Q18: 0 | R18: 0 | S18: 0
A19: GCX_OBJTABLE_RECORD | B19: 0 | C19: 17 | D19: 2 | E19: 1 | F19: 0 | G19: 0 | H19: 3 | I19: 0 | J19: 0 | K19: 0 | L19: 0 | M19: =13+B2*B19 + C2*C19 + D2*D19 + E2*E19 + F2*F19 + G2*G19 + H2*H19 + I2*I19 + J2*J19 + K2*K19 + L2*L19 ->  | N19: =P2+E2 ->  | O19: =P2+C2+C2+C2+C2+C2 ->  | P19: 0 | Q19: 0 | R19: 0 | S19: 0
A20: GCX_SKILL_LEVEL | B20: 0 | C20: 14 | D20: 2 | E20: 1 | F20: 0 | G20: 0 | H20: 3 | I20: 0 | J20: 0 | K20: 0 | L20: 0 | M20: =13+B2*B20 + C2*C20 + D2*D20 + E2*E20 + F2*F20 + G2*G20 + H2*H20 + I2*I20 + J2*J20 + K2*K20 + L2*L20 ->  | N20: =P2+E2 ->  | O20: =P2+C2+C2+C2 ->  | P20: 0 | Q20: 0 | R20: 0 | S20: 0
A21: GCX_SUBCODE | B21: 0 | C21: 12 | D21: 2 | E21: 1 | F21: 0 | G21: 0 | H21: 3 | I21: 0 | J21: 0 | K21: 0 | L21: 2 | M21: =13+B2*B21 + C2*C21 + D2*D21 + E2*E21 + F2*F21 + G2*G21 + H2*H21 + I2*I21 + J2*J21 + K2*K21 + L2*L21 ->  | N21: =P2+E2 ->  | O21: =P2+C2+C2 ->  | P21: 0 | Q21: 0 | R21: 0 | S21: 0
A22: GC_ACTION_CODE | B22: 0 | C22: 18 | D22: 2 | E22: 0 | F22: 0 | G22: 0 | H22: 4 | I22: 0 | J22: 0 | K22: 0 | L22: 2 | M22: =13+B2*B22 + C2*C22 + D2*D22 + E2*E22 + F2*F22 + G2*G22 + H2*H22 + I2*I22 + J2*J22 + K2*K22 + L2*L22 ->  | N22: =P2+C2 ->  | O22: 0 | P22: 0 | Q22: 0 | R22: 0 | S22: 0
A23: GC_AGENT | B23: 0 | C23: 19 | D23: 2 | E23: 0 | F23: 0 | G23: 0 | H23: 4 | I23: 0 | J23: 3 | K23: 0 | L23: 2 | M23: =13+B2*B23 + C2*C23 + D2*D23 + E2*E23 + F2*F23 + G2*G23 + H2*H23 + I2*I23 + J2*J23 + K2*K23 + L2*L23 ->  | N23: =P2+C2 ->  | O23: 0 | P23: 0 | Q23: 0 | R23: 0 | S23: 0
A24: GC_APPLICATION | B24: 0 | C24: 17 | D24: 2 | E24: 0 | F24: 0 | G24: 0 | H24: 4 | I24: 0 | J24: 0 | K24: 0 | L24: 2 | M24: =13+B2*B24 + C2*C24 + D2*D24 + E2*E24 + F2*F24 + G2*G24 + H2*H24 + I2*I24 + J2*J24 + K2*K24 + L2*L24 ->  | N24: =P2+C2 ->  | O24: 0 | P24: 0 | Q24: 0 | R24: 0 | S24: 0
A25: GC_ATTR_VALUE | B25: 0 | C25: 18 | D25: 2 | E25: 0 | F25: 0 | G25: 0 | H25: 4 | I25: 0 | J25: 0 | K25: 0 | L25: 3 | M25: =13+B2*B25 + C2*C25 + D2*D25 + E2*E25 + F2*F25 + G2*G25 + H2*H25 + I2*I25 + J2*J25 + K2*K25 + L2*L25 ->  | N25: =P2+C2 ->  | O25: 0 | P25: 0 | Q25: 0 | R25: 0 | S25: 0
A26: GC_BUS_ATTRIBUTE | B26: 0 | C26: 18 | D26: 2 | E26: 0 | F26: 0 | G26: 0 | H26: 4 | I26: 0 | J26: 0 | K26: 0 | L26: 3 | M26: =13+B2*B26 + C2*C26 + D2*D26 + E2*E26 + F2*F26 + G2*G26 + H2*H26 + I2*I26 + J2*J26 + K2*K26 + L2*L26 ->  | N26: =P2+C2 ->  | O26: 0 | P26: 0 | Q26: 0 | R26: 0 | S26: 0
A27: GC_CALLING_LIST | B27: 0 | C27: 23 | D27: 2 | E27: 0 | F27: 0 | G27: 0 | H27: 4 | I27: 0 | J27: 0 | K27: 0 | L27: 2 | M27: =13+B2*B27 + C2*C27 + D2*D27 + E2*E27 + F2*F27 + G2*G27 + H2*H27 + I2*I27 + J2*J27 + K2*K27 + L2*L27 ->  | N27: =P2+C2 ->  | O27: 0 | P27: 0 | Q27: 0 | R27: 0 | S27: 0
A28: GC_CAMPAIGN | B28: 0 | C28: 17 | D28: 2 | E28: 0 | F28: 0 | G28: 0 | H28: 4 | I28: 0 | J28: 0 | K28: 0 | L28: 2 | M28: =13+B2*B28 + C2*C28 + D2*D28 + E2*E28 + F2*F28 + G2*G28 + H2*H28 + I2*I28 + J2*J28 + K2*K28 + L2*L28 ->  | N28: =P2+C2 ->  | O28: 0 | P28: 0 | Q28: 0 | R28: 0 | S28: 0
A29: GC_ENDPOINT | B29: 0 | C29: 20 | D29: 2 | E29: 0 | F29: 0 | G29: 0 | H29: 4 | I29: 0 | J29: 0 | K29: 0 | L29: 3 | M29: =13+B2*B29 + C2*C29 + D2*D29 + E2*E29 + F2*F29 + G2*G29 + H2*H29 + I2*I29 + J2*J29 + K2*K29 + L2*L29 ->  | N29: =P2+C2 ->  | O29: 0 | P29: 0 | Q29: 0 | R29: 0 | S29: 0
A30: GC_FIELD | B30: 0 | C30: 23 | D30: 2 | E30: 0 | F30: 0 | G30: 0 | H30: 4 | I30: 0 | J30: 0 | K30: 0 | L30: 3 | M30: =13+B2*B30 + C2*C30 + D2*D30 + E2*E30 + F2*F30 + G2*G30 + H2*H30 + I2*I30 + J2*J30 + K2*K30 + L2*L30 ->  | N30: =P2+C2 ->  | O30: 0 | P30: 0 | Q30: 0 | R30: 0 | S30: 0
A31: GC_FILTER | B31: 0 | C31: 18 | D31: 2 | E31: 0 | F31: 0 | G31: 0 | H31: 4 | I31: 0 | J31: 0 | K31: 0 | L31: 2 | M31: =13+B2*B31 + C2*C31 + D2*D31 + E2*E31 + F2*F31 + G2*G31 + H2*H31 + I2*I31 + J2*J31 + K2*K31 + L2*L31 ->  | N31: =P2+C2 ->  | O31: 0 | P31: 0 | Q31: 0 | R31: 0 | S31: 0
A32: GC_FOLDER | B32: 0 | C32: 20 | D32: 2 | E32: 0 | F32: 0 | G32: 0 | H32: 4 | I32: 0 | J32: 0 | K32: 0 | L32: 1 | M32: =13+B2*B32 + C2*C32 + D2*D32 + E2*E32 + F2*F32 + G2*G32 + H2*H32 + I2*I32 + J2*J32 + K2*K32 + L2*L32 ->  | N32: =P2+C2 ->  | O32: 0 | P32: 0 | Q32: 0 | R32: 0 | S32: 0
A33: GC_FORMAT | B33: 0 | C33: 17 | D33: 2 | E33: 0 | F33: 0 | G33: 0 | H33: 4 | I33: 0 | J33: 0 | K33: 0 | L33: 2 | M33: =13+B2*B33 + C2*C33 + D2*D33 + E2*E33 + F2*F33 + G2*G33 + H2*H33 + I2*I33 + J2*J33 + K2*K33 + L2*L33 ->  | N33: =P2+C2 ->  | O33: 0 | P33: 0 | Q33: 0 | R33: 0 | S33: 0
A34: GC_GROUP | B34: 0 | C34: 19 | D34: 2 | E34: 0 | F34: 0 | G34: 0 | H34: 4 | I34: 0 | J34: 0 | K34: 0 | L34: 2 | M34: =13+B2*B34 + C2*C34 + D2*D34 + E2*E34 + F2*F34 + G2*G34 + H2*H34 + I2*I34 + J2*J34 + K2*K34 + L2*L34 ->  | N34: =P2+C2 ->  | O34: 0 | P34: 0 | Q34: 0 | R34: 0 | S34: 0
A35: GC_IVR | B35: 0 | C35: 18 | D35: 2 | E35: 0 | F35: 0 | G35: 0 | H35: 4 | I35: 0 | J35: 0 | K35: 0 | L35: 3 | M35: =13+B2*B35 + C2*C35 + D2*D35 + E2*E35 + F2*F35 + G2*G35 + H2*H35 + I2*I35 + J2*J35 + K2*K35 + L2*L35 ->  | N35: =P2+C2 ->  | O35: 0 | P35: 0 | Q35: 0 | R35: 0 | S35: 0
A36: GC_IVRPORT | B36: 0 | C36: 19 | D36: 2 | E36: 0 | F36: 0 | G36: 0 | H36: 4 | I36: 0 | J36: 0 | K36: 0 | L36: 2 | M36: =13+B2*B36 + C2*C36 + D2*D36 + E2*E36 + F2*F36 + G2*G36 + H2*H36 + I2*I36 + J2*J36 + K2*K36 + L2*L36 ->  | N36: =P2+C2 ->  | O36: 0 | P36: 0 | Q36: 0 | R36: 0 | S36: 0
A37: GC_LOGIN | B37: 0 | C37: 18 | D37: 2 | E37: 0 | F37: 0 | G37: 0 | H37: 4 | I37: 0 | J37: 0 | K37: 0 | L37: 1 | M37: =13+B2*B37 + C2*C37 + D2*D37 + E2*E37 + F2*F37 + G2*G37 + H2*H37 + I2*I37 + J2*J37 + K2*K37 + L2*L37 ->  | N37: =P2+C2 ->  | O37: 0 | P37: 0 | Q37: 0 | R37: 0 | S37: 0
A38: GC_OBJ_TABLE | B38: 0 | C38: 17 | D38: 2 | E38: 0 | F38: 0 | G38: 0 | H38: 4 | I38: 0 | J38: 0 | K38: 0 | L38: 2 | M38: =13+B2*B38 + C2*C38 + D2*D38 + E2*E38 + F2*F38 + G2*G38 + H2*H38 + I2*I38 + J2*J38 + K2*K38 + L2*L38 ->  | N38: =P2+C2 ->  | O38: 0 | P38: 0 | Q38: 0 | R38: 0 | S38: 0
A39: GC_PLACE | B39: 0 | C39: 17 | D39: 2 | E39: 0 | F39: 0 | G39: 0 | H39: 4 | I39: 0 | J39: 0 | K39: 0 | L39: 1 | M39: =13+B2*B39 + C2*C39 + D2*D39 + E2*E39 + F2*F39 + G2*G39 + H2*H39 + I2*I39 + J2*J39 + K2*K39 + L2*L39 ->  | N39: =P2+C2 ->  | O39: 0 | P39: 0 | Q39: 0 | R39: 0 | S39: 0
A40: GC_SCRIPT | B40: 0 | C40: 18 | D40: 2 | E40: 0 | F40: 0 | G40: 0 | H40: 4 | I40: 0 | J40: 0 | K40: 0 | L40: 1 | M40: =13+B2*B40 + C2*C40 + D2*D40 + E2*E40 + F2*F40 + G2*G40 + H2*H40 + I2*I40 + J2*J40 + K2*K40 + L2*L40 ->  | N40: =P2+C2 ->  | O40: 0 | P40: 0 | Q40: 0 | R40: 0 | S40: 0
A41: GC_SKILL | B41: 0 | C41: 17 | D41: 2 | E41: 0 | F41: 0 | G41: 0 | H41: 4 | I41: 0 | J41: 0 | K41: 0 | L41: 1 | M41: =13+B2*B41 + C2*C41 + D2*D41 + E2*E41 + F2*F41 + G2*G41 + H2*H41 + I2*I41 + J2*J41 + K2*K41 + L2*L41 ->  | N41: =P2+C2 ->  | O41: 0 | P41: 0 | Q41: 0 | R41: 0 | S41: 0
A42: GC_SWITCH | B42: 0 | C42: 19 | D42: 2 | E42: 0 | F42: 0 | G42: 0 | H42: 4 | I42: 0 | J42: 0 | K42: 0 | L42: 1 | M42: =13+B2*B42 + C2*C42 + D2*D42 + E2*E42 + F2*F42 + G2*G42 + H2*H42 + I2*I42 + J2*J42 + K2*K42 + L2*L42 ->  | N42: =P2+C2 ->  | O42: 0 | P42: 0 | Q42: 0 | R42: 0 | S42: 0
A43: GC_TABLE_ACCESS | B43: 0 | C43: 21 | D43: 2 | E43: 0 | F43: 0 | G43: 0 | H43: 4 | I43: 0 | J43: 0 | K43: 0 | L43: 3 | M43: =13+B2*B43 + C2*C43 + D2*D43 + E2*E43 + F2*F43 + G2*G43 + H2*H43 + I2*I43 + J2*J43 + K2*K43 + L2*L43 ->  | N43: =P2+C2 ->  | O43: 0 | P43: 0 | Q43: 0 | R43: 0 | S43: 0
A44: GC_TENANT | B44: 0 | C44: 16 | D44: 2 | E44: 0 | F44: 0 | G44: 0 | H44: 4 | I44: 0 | J44: 0 | K44: 0 | L44: 1 | M44: =13+B2*B44 + C2*C44 + D2*D44 + E2*E44 + F2*F44 + G2*G44 + H2*H44 + I2*I44 + J2*J44 + K2*K44 + L2*L44 ->  | N44: =P2+C2 ->  | O44: 0 | P44: 0 | Q44: 0 | R44: 0 | S44: 0
A45: GC_TIME_ZONE | B45: 0 | C45: 21 | D45: 2 | E45: 0 | F45: 0 | G45: 0 | H45: 4 | I45: 0 | J45: 0 | K45: 0 | L45: 4 | M45: =13+B2*B45 + C2*C45 + D2*D45 + E2*E45 + F2*F45 + G2*G45 + H2*H45 + I2*I45 + J2*J45 + K2*K45 + L2*L45 ->  | N45: =P2+C2 ->  | O45: 0 | P45: 0 | Q45: 0 | R45: 0 | S45: 0
A46: GC_TREATMENT | B46: 0 | C46: 27 | D46: 2 | E46: 0 | F46: 0 | G46: 0 | H46: 4 | I46: 0 | J46: 0 | K46: 0 | L46: 2 | M46: =13+B2*B46 + C2*C46 + D2*D46 + E2*E46 + F2*F46 + G2*G46 + H2*H46 + I2*I46 + J2*J46 + K2*K46 + L2*L46 ->  | N46: =P2+C2 ->  | O46: 0 | P46: 0 | Q46: 0 | R46: 0 | S46: 0
A47: GC_VOICE_PROMPT | B47: 0 | C47: 19 | D47: 2 | E47: 0 | F47: 0 | G47: 0 | H47: 4 | I47: 0 | J47: 0 | K47: 0 | L47: 2 | M47: =13+B2*B47 + C2*C47 + D2*D47 + E2*E47 + F2*F47 + G2*G47 + H2*H47 + I2*I47 + J2*J47 + K2*K47 + L2*L47 ->  | N47: =P2+C2 ->  | O47: 0 | P47: 0 | Q47: 0 | R47: 0 | S47: 0
A48: GS_AGENT_STAT | B48: 0 | C48: 17 | D48: 2 | E48: 1 | F48: 0 | G48: 0 | H48: 3 | I48: 1 | J48: 0 | K48: 0 | L48: 0 | M48: =13+B2*B48 + C2*C48 + D2*D48 + E2*E48 + F2*F48 + G2*G48 + H2*H48 + I2*I48 + J2*J48 + K2*K48 + L2*L48 ->  | N48: =P2+E2 ->  | O48: =P2+I2+C2+C2 ->  | P48: 0 | Q48: 0 | R48: 0 | S48: 0
A49: GS_AGENT_STAT_WM | B49: 0 | C49: 19 | D49: 2 | E49: 1 | F49: 0 | G49: 0 | H49: 3 | I49: 1 | J49: 0 | K49: 0 | L49: 0 | M49: =13+B2*B49 + C2*C49 + D2*D49 + E2*E49 + F2*F49 + G2*G49 + H2*H49 + I2*I49 + J2*J49 + K2*K49 + L2*L49 ->  | N49: =P2+E2 ->  | O49: =P2+I2+C2+C2+C2 ->  | P49: 0 | Q49: 0 | R49: 0 | S49: 0
A50: GX_SESSION_ENDPOINT | B50: 0 | C50: 18 | D50: 2 | E50: 1 | F50: 0 | G50: 0 | H50: 3 | I50: 1 | J50: 0 | K50: 0 | L50: 0 | M50: =13+B2*B50 + C2*C50 + D2*D50 + E2*E50 + F2*F50 + G2*G50 + H2*H50 + I2*I50 + J2*J50 + K2*K50 + L2*L50 ->  | N50: =P2+E2 ->  | O50: =P2+C2 ->  | P50: =P2+I2+C2 ->  | Q50: 0 | R50: 0 | S50: 0
A51: G_AGENT_STATE_HISTORY | B51: 0 | C51: 26 | D51: 2 | E51: 1 | F51: 0 | G51: 0 | H51: 3 | I51: 2 | J51: 0 | K51: 0 | L51: 1 | M51: =13+B2*B51 + C2*C51 + D2*D51 + E2*E51 + F2*F51 + G2*G51 + H2*H51 + I2*I51 + J2*J51 + K2*K51 + L2*L51 ->  | N51: =P2+E2 ->  | O51: 0 | P51: 0 | Q51: 0 | R51: 0 | S51: 0
A52: G_AGENT_STATE_RC | B52: 1 | C52: 17 | D52: 2 | E52: 1 | F52: 0 | G52: 0 | H52: 3 | I52: 1 | J52: 0 | K52: 0 | L52: 2 | M52: =13+B2*B52 + C2*C52 + D2*D52 + E2*E52 + F2*F52 + G2*G52 + H2*H52 + I2*I52 + J2*J52 + K2*K52 + L2*L52 ->  | N52: =P2+E2 ->  | O52: 0 | P52: 0 | Q52: 0 | R52: 0 | S52: 0
A53: G_CALL | B53: 0 | C53: 17 | D53: 2 | E53: 1 | F53: 1 | G53: 0 | H53: 3 | I53: 8 | J53: 0 | K53: 0 | L53: 0 | M53: =13+B2*B53 + C2*C53 + D2*D53 + E2*E53 + F2*F53 + G2*G53 + H2*H53 + I2*I53 + J2*J53 + K2*K53 + L2*L53 ->  | N53: =P2+E2 ->  | O53: =P2+I2 ->  | P53: =P2+I2 ->  | Q53: =P2+I2 ->  | R53: =P2+C2+B2 ->  | S53: =P2+C2+B2 -> 
A54: G_CALL_HISTORY | B54: 0 | C54: 10 | D54: 2 | E54: 1 | F54: 0 | G54: 0 | H54: 2 | I54: 2 | J54: 0 | K54: 0 | L54: 0 | M54: =13+B2*B54 + C2*C54 + D2*D54 + E2*E54 + F2*F54 + G2*G54 + H2*H54 + I2*I54 + J2*J54 + K2*K54 + L2*L54 ->  | N54: =P2+E2 ->  | O54: =P2+I2 ->  | P54: 0 | Q54: 0 | R54: 0 | S54: 0
A55: G_CALL_STAT | B55: 8 | C55: 24 | D55: 2 | E55: 1 | F55: 0 | G55: 0 | H55: 1 | I55: 1 | J55: 0 | K55: 0 | L55: 0 | M55: =13+B2*B55 + C2*C55 + D2*D55 + E2*E55 + F2*F55 + G2*G55 + H2*H55 + I2*I55 + J2*J55 + K2*K55 + L2*L55 ->  | N55: =P2+E2 ->  | O55: =P2+I2 ->  | P55: 0 | Q55: 0 | R55: 0 | S55: 0
A56: G_CALL_USERDATA | B56: 0 | C56: 6 | D56: 2 | E56: 1 | F56: 0 | G56: 0 | H56: 1 | I56: 1 | J56: 0 | K56: 0 | L56: 10 | M56: =13+B2*B56 + C2*C56 + D2*D56 + E2*E56 + F2*F56 + G2*G56 + H2*H56 + I2*I56 + J2*J56 + K2*K56 + L2*L56 ->  | N56: =P2+E2 ->  | O56: =P2+I2 ->  | P56: 0 | Q56: 0 | R56: 0 | S56: 0
A57: G_CALL_USERDATA_CUST | B57: 0 | C57: 6 | D57: 2 | E57: 1 | F57: 0 | G57: 0 | H57: 1 | I57: 1 | J57: 13 | K57: 0 | L57: 6 | M57: =13+B2*B57 + C2*C57 + D2*D57 + E2*E57 + F2*F57 + G2*G57 + H2*H57 + I2*I57 + J2*J57 + K2*K57 + L2*L57 ->  | N57: =P2+E2 ->  | O57: =P2+I2 ->  | P57: 0 | Q57: 0 | R57: 0 | S57: 0
A58: G_CALL_USERDATA_CUST1 | B58: 0 | C58: 6 | D58: 2 | E58: 1 | F58: 0 | G58: 0 | H58: 1 | I58: 1 | J58: 13 | K58: 0 | L58: 6 | M58: =13+B2*B58 + C2*C58 + D2*D58 + E2*E58 + F2*F58 + G2*G58 + H2*H58 + I2*I58 + J2*J58 + K2*K58 + L2*L58 ->  | N58: =P2+E2 ->  | O58: =P2+I2 ->  | P58: 0 | Q58: 0 | R58: 0 | S58: 0
A59: G_CALL_USERDATA_CUST2 | B59: 0 | C59: 6 | D59: 2 | E59: 1 | F59: 0 | G59: 0 | H59: 1 | I59: 1 | J59: 13 | K59: 0 | L59: 6 | M59: =13+B2*B59 + C2*C59 + D2*D59 + E2*E59 + F2*F59 + G2*G59 + H2*H59 + I2*I59 + J2*J59 + K2*K59 + L2*L59 ->  | N59: =P2+E2 ->  | O59: =P2+I2 ->  | P59: 0 | Q59: 0 | R59: 0 | S59: 0
A60: G_DND_HISTORY | B60: 0 | C60: 14 | D60: 2 | E60: 1 | F60: 0 | G60: 0 | H60: 3 | I60: 1 | J60: 0 | K60: 0 | L60: 0 | M60: =13+B2*B60 + C2*C60 + D2*D60 + E2*E60 + F2*F60 + G2*G60 + H2*H60 + I2*I60 + J2*J60 + K2*K60 + L2*L60 ->  | N60: =P2+E2 ->  | O60: 0 | P60: 0 | Q60: 0 | R60: 0 | S60: 0
A61: G_IR | B61: 0 | C61: 13 | D61: 3 | E61: 1 | F61: 0 | G61: 0 | H61: 4 | I61: 4 | J61: 0 | K61: 0 | L61: 0 | M61: =13+B2*B61 + C2*C61 + D2*D61 + E2*E61 + F2*F61 + G2*G61 + H2*H61 + I2*I61 + J2*J61 + K2*K61 + L2*L61 ->  | N61: =P2+E2 ->  | O61: =P2+I2 ->  | P61: =P2+I2 ->  | Q61: =P2+I2 ->  | R61: =P2+C2+B2 ->  | S61: =P2+C2+B2 -> 
A62: G_IR_HISTORY | B62: 0 | C62: 9 | D62: 2 | E62: 1 | F62: 1 | G62: 0 | H62: 2 | I62: 2 | J62: 0 | K62: 0 | L62: 0 | M62: =13+B2*B62 + C2*C62 + D2*D62 + E2*E62 + F2*F62 + G2*G62 + H2*H62 + I2*I62 + J2*J62 + K2*K62 + L2*L62 ->  | N62: =P2+E2 ->  | O62: =P2+I2 ->  | P62: =P2+I2+F2 ->  | Q62: 0 | R62: 0 | S62: 0
A63: G_IS_LINK | B63: 0 | C63: 15 | D63: 2 | E63: 1 | F63: 0 | G63: 0 | H63: 4 | I63: 2 | J63: 0 | K63: 0 | L63: 1 | M63: =13+B2*B63 + C2*C63 + D2*D63 + E2*E63 + F2*F63 + G2*G63 + H2*H63 + I2*I63 + J2*J63 + K2*K63 + L2*L63 ->  | N63: =P2+E2 ->  | O63: =P2+C2+B2 ->  | P63: 0 | Q63: 0 | R63: 0 | S63: 0
A64: G_IS_LINK_HISTORY | B64: 0 | C64: 11 | D64: 2 | E64: 1 | F64: 0 | G64: 0 | H64: 2 | I64: 3 | J64: 0 | K64: 0 | L64: 0 | M64: =13+B2*B64 + C2*C64 + D2*D64 + E2*E64 + F2*F64 + G2*G64 + H2*H64 + I2*I64 + J2*J64 + K2*K64 + L2*L64 ->  | N64: =P2+E2 ->  | O64: 0 | P64: 0 | Q64: 0 | R64: 0 | S64: 0
A65: G_LOGIN_SESSION | B65: 0 | C65: 17 | D65: 2 | E65: 1 | F65: 0 | G65: 0 | H65: 3 | I65: 2 | J65: 0 | K65: 0 | L65: 0 | M65: =13+B2*B65 + C2*C65 + D2*D65 + E2*E65 + F2*F65 + G2*G65 + H2*H65 + I2*I65 + J2*J65 + K2*K65 + L2*L65 ->  | N65: =P2+E2 ->  | O65: =P2+C2 ->  | P65: =P2+I2 ->  | Q65: 0 | R65: 0 | S65: 0
A66: G_PARTY | B66: 0 | C66: 22 | D66: 2 | E66: 1 | F66: 0 | G66: 0 | H66: 4 | I66: 4 | J66: 0 | K66: 0 | L66: 1 | M66: =13+B2*B66 + C2*C66 + D2*D66 + E2*E66 + F2*F66 + G2*G66 + H2*H66 + I2*I66 + J2*J66 + K2*K66 + L2*L66 ->  | N66: =P2+E2 ->  | O66: =P2+I2 ->  | P66: =P2+I2 ->  | Q66: 0 | R66: 0 | S66: 0
A67: G_PARTY_HISTORY | B67: 0 | C67: 20 | D67: 2 | E67: 1 | F67: 0 | G67: 0 | H67: 3 | I67: 2 | J67: 0 | K67: 0 | L67: 0 | M67: =13+B2*B67 + C2*C67 + D2*D67 + E2*E67 + F2*F67 + G2*G67 + H2*H67 + I2*I67 + J2*J67 + K2*K67 + L2*L67 ->  | N67: =P2+E2 ->  | O67: =P2+I2 ->  | P67: 0 | Q67: 0 | R67: 0 | S67: 0
A68: G_PARTY_STAT | B68: 5 | C68: 26 | D68: 2 | E68: 1 | F68: 0 | G68: 0 | H68: 1 | I68: 1 | J68: 0 | K68: 0 | L68: 0 | M68: =13+B2*B68 + C2*C68 + D2*D68 + E2*E68 + F2*F68 + G2*G68 + H2*H68 + I2*I68 + J2*J68 + K2*K68 + L2*L68 ->  | N68: =P2+E2 ->  | O68: =P2+I2 ->  | P68: 0 | Q68: 0 | R68: 0 | S68: 0
A69: G_ROUTE_RESULT | B69: 0 | C69: 16 | D69: 2 | E69: 1 | F69: 0 | G69: 0 | H69: 3 | I69: 9 | J69: 0 | K69: 0 | L69: 3 | M69: =13+B2*B69 + C2*C69 + D2*D69 + E2*E69 + F2*F69 + G2*G69 + H2*H69 + I2*I69 + J2*J69 + K2*K69 + L2*L69 ->  | N69: =P2+E2 ->  | O69: 0 | P69: 0 | Q69: 0 | R69: 0 | S69: 0
A70: G_SECURE_USERDATA_HISTORY | B70: 0 | C70: 16 | D70: 2 | E70: 0 | F70: 1 | G70: 0 | H70: 2 | I70: 2 | J70: 1 | K70: 0 | L70: 2 | M70: =13+B2*B70 + C2*C70 + D2*D70 + E2*E70 + F2*F70 + G2*G70 + H2*H70 + I2*I70 + J2*J70 + K2*K70 + L2*L70 ->  | N70: =P2+F2 ->  | O70: 0 | P70: 0 | Q70: 0 | R70: 0 | S70: 0
A71: G_USERDATA_HISTORY | B71: 0 | C71: 16 | D71: 2 | E71: 0 | F71: 1 | G71: 0 | H71: 2 | I71: 2 | J71: 1 | K71: 0 | L71: 2 | M71: =13+B2*B71 + C2*C71 + D2*D71 + E2*E71 + F2*F71 + G2*G71 + H2*H71 + I2*I71 + J2*J71 + K2*K71 + L2*L71 ->  | N71: =P2+F2 ->  | O71: 0 | P71: 0 | Q71: 0 | R71: 0 | S71: 0
A72: G_VIRTUAL_QUEUE | B72: 0 | C72: 26 | D72: 2 | E72: 1 | F72: 0 | G72: 0 | H72: 3 | I72: 6 | J72: 0 | K72: 0 | L72: 4 | M72: =13+B2*B72 + C2*C72 + D2*D72 + E2*E72 + F2*F72 + G2*G72 + H2*H72 + I2*I72 + J2*J72 + K2*K72 + L2*L72 ->  | N72: =P2+F2 ->  | O72: =P2+E2 ->  | P72: =P2+I2 ->  | Q72: 0 | R72: 0 | S72: 0
A73: GOX_CHAIN_CALL | B73: 0 | C73: 8 | D73: 2 | E73: 1 | F73: 0 | G73: 0 | H73: 2 | I73: 1 | J73: 2 | K73: 0 | L73: 0 | M73: =13+B2*B73 + C2*C73 + D2*D73 + E2*E73 + F2*F73 + G2*G73 + H2*H73 + I2*I73 + J2*J73 + K2*K73 + L2*L73 ->  | N73: =P2+F2 ->  | O73: =P2+E2 ->  | P73: =P2+I2 ->  | Q73: =P2+E2 ->  | R73: 0 | S73: 0
A74: GO_CAMPAIGN | B74: 0 | C74: 26 | D74: 2 | E74: 1 | F74: 0 | G74: 0 | H74: 4 | I74: 0 | J74: 1 | K74: 0 | L74: 0 | M74: =13+B2*B74 + C2*C74 + D2*D74 + E2*E74 + F2*F74 + G2*G74 + H2*H74 + I2*I74 + J2*J74 + K2*K74 + L2*L74 ->  | N74: =P2+E2 ->  | O74: =P2+J2 ->  | P74: 0 | Q74: 0 | R74: 0 | S74: 0
A75: GO_CAMPAIGNHISTORY | B75: 0 | C75: 16 | D75: 2 | E75: 1 | F75: 0 | G75: 0 | H75: 3 | I75: 0 | J75: 1 | K75: 0 | L75: 0 | M75: =13+B2*B75 + C2*C75 + D2*D75 + E2*E75 + F2*F75 + G2*G75 + H2*H75 + I2*I75 + J2*J75 + K2*K75 + L2*L75 ->  | N75: =P2+E2 ->  | O75: 0 | P75: 0 | Q75: 0 | R75: 0 | S75: 0
A76: GO_CAMPPROP_HIST | B76: 0 | C76: 33 | D76: 2 | E76: 1 | F76: 0 | G76: 0 | H76: 5 | I76: 0 | J76: 1 | K76: 0 | L76: 0 | M76: =13+B2*B76 + C2*C76 + D2*D76 + E2*E76 + F2*F76 + G2*G76 + H2*H76 + I2*I76 + J2*J76 + K2*K76 + L2*L76 ->  | N76: =P2+E2 ->  | O76: 0 | P76: 0 | Q76: 0 | R76: 0 | S76: 0
A77: GO_CHAIN | B77: 0 | C77: 23 | D77: 2 | E77: 1 | F77: 0 | G77: 0 | H77: 4 | I77: 0 | J77: 4 | K77: 0 | L77: 0 | M77: =13+B2*B77 + C2*C77 + D2*D77 + E2*E77 + F2*F77 + G2*G77 + H2*H77 + I2*I77 + J2*J77 + K2*K77 + L2*L77 ->  | N77: =P2+E2 ->  | O77: =P2+J2 ->  | P77: 0 | Q77: 0 | R77: 0 | S77: 0
A78: GO_CHAINREC_HIST | B78: 0 | C78: 26 | D78: 2 | E78: 1 | F78: 0 | G78: 0 | H78: 3 | I78: 0 | J78: 2 | K78: 0 | L78: 0 | M78: =13+B2*B78 + C2*C78 + D2*D78 + E2*E78 + F2*F78 + G2*G78 + H2*H78 + I2*I78 + J2*J78 + K2*K78 + L2*L78 ->  | N78: =P2+E2 ->  | O78: 0 | P78: 0 | Q78: 0 | R78: 0 | S78: 0
A79: GO_CUSTOM_FIELDS | B79: 0 | C79: 15 | D79: 2 | E79: 1 | F79: 0 | G79: 0 | H79: 4 | I79: 0 | J79: 1 | K79: 0 | L79: 1 | M79: =13+B2*B79 + C2*C79 + D2*D79 + E2*E79 + F2*F79 + G2*G79 + H2*H79 + I2*I79 + J2*J79 + K2*K79 + L2*L79 ->  | N79: =P2+E2 ->  | O79: =P2+J2 ->  | P79: =P2+J2+C2+C2 ->  | Q79: 0 | R79: 0 | S79: 0
A80: GO_FIELDHIST | B80: 0 | C80: 14 | D80: 2 | E80: 1 | F80: 0 | G80: 0 | H80: 3 | I80: 1 | J80: 1 | K80: 0 | L80: 2 | M80: =13+B2*B80 + C2*C80 + D2*D80 + E2*E80 + F2*F80 + G2*G80 + H2*H80 + I2*I80 + J2*J80 + K2*K80 + L2*L80 ->  | N80: =P2+E2 ->  | O80: 0 | P80: 0 | Q80: 0 | R80: 0 | S80: 0
A81: GO_METRICS | B81: 0 | C81: 15 | D81: 2 | E81: 1 | F81: 0 | G81: 0 | H81: 2 | I81: 0 | J81: 5 | K81: 0 | L81: 0 | M81: =13+B2*B81 + C2*C81 + D2*D81 + E2*E81 + F2*F81 + G2*G81 + H2*H81 + I2*I81 + J2*J81 + K2*K81 + L2*L81 ->  | N81: =P2+E2 ->  | O81: 0 | P81: 0 | Q81: 0 | R81: 0 | S81: 0
A82: GO_RECORD | B82: 0 | C82: 33 | D82: 2 | E82: 1 | F82: 0 | G82: 0 | H82: 4 | I82: 0 | J82: 3 | K82: 0 | L82: 2 | M82: =13+B2*B82 + C2*C82 + D2*D82 + E2*E82 + F2*F82 + G2*G82 + H2*H82 + I2*I82 + J2*J82 + K2*K82 + L2*L82 ->  | N82: =P2+E2 ->  | O82: =P2+J2 ->  | P82: =P2+J2+C2 ->  | Q82: 0 | R82: 0 | S82: 0
A83: GO_SECURE_FIELDS | B83: 0 | C83: 15 | D83: 2 | E83: 1 | F83: 0 | G83: 0 | H83: 4 | I83: 0 | J83: 1 | K83: 0 | L83: 1 | M83: =13+B2*B83 + C2*C83 + D2*D83 + E2*E83 + F2*F83 + G2*G83 + H2*H83 + I2*I83 + J2*J83 + K2*K83 + L2*L83 ->  | N83: =P2+E2 ->  | O83: =P2+J2 ->  | P83: =P2+J2+C2+C2 ->  | Q83: 0 | R83: 0 | S83: 0
A84: GO_SEC_FIELDHIST | B84: 0 | C84: 14 | D84: 2 | E84: 1 | F84: 0 | G84: 0 | H84: 3 | I84: 1 | J84: 1 | K84: 0 | L84: 2 | M84: =13+B2*B84 + C2*C84 + D2*D84 + E2*E84 + F2*F84 + G2*G84 + H2*H84 + I2*I84 + J2*J84 + K2*K84 + L2*L84 ->  | N84: =P2+E2 ->  | O84: 0 | P84: 0 | Q84: 0 | R84: 0 | S84: 0

Sheet UCS
A1: Universal Contact Server / Context Services 8.1
A2: Use this spreadsheet to estimate the size of the Universal Contact Server database for your environment. Some examples are provided. Scroll over red marks for information. 1. Change the values in the Number column to match your environment. 2. Estimated database sizes appear in the last rows.
A3: Profile entries | B3: Number
A4: Number of Profiles | B4: 500,000
A5: Number of defined Core Attributes | B5: 4
A6: Number of defined Extensions | B6: 5
A7: Number of fixed attributes in Extensions | B7: 5
A8: Number of string attributes in Extensions | B8: 15
A9: Average length of each string in Extensions | B9: 10
A10: Number of defined identification keys | B10: 4
A11: Number of fixed attributes in identification keys | B11: 0
A12: Number of string attributes in identification keys | B12: 4
A13: Average length of each string in identification keys | B13: 16
A14: Estimations
A15: Profiles Core Size (MB) | B15: =NbProfile*((160+NbCoreAttribute*400))/ (1024*1024) -> 839
A16: Profiles Extensions Size (MB) | B16: =NbProfile*((2*2*NbProfileExtensions*32)+(NbFixedAttrExtension*8)+(AvgStrLengthProfExt*2*2*NbStrAttrExtension)) / (1024*1024) -> 610
A17: Profile Identification Keys Size (MB) | B17: =NbProfile*NbIdKeys*((32+(NbFixedAttrsIdKeys*8+AvgLengthStringAttrsIdKeys*NbStringAttrsIdKeys)*2*2))/ (1024*1024) -> 549
A18: Total Profiles Size (MB) | B18: =SUM(B15:B17) -> 1,999
A20: Service model entries (Context Services) | B20: Number
A21: Number of Services per Day | B21: 100,000
A22: Services lifetime (days) | B22: 180
A23: Number of States per Service | B23: 3
A24: Number of Tasks per Service | B24: 6
A25: Number of defined Service extensions | B25: 2
A26: Number of fixed attributes in Service Extensions | B26: 10
A27: Number of string attributes in Service Extensions | B27: 3
A28: Average length of each string in Service Extensions | B28: 20
A29: Number of defined State extensions | B29: 2
A30: Number of fixed attributes in State extensions | B30: 10
A31: Number of string attributes in State extensions | B31: 3
A32: Average length of each string in State extensions | B32: 20
A33: Number of defined Task extensions | B33: 2
A34: Number of fixed attributes in Task Extensions | B34: 10
A35: Number of string attributes in Task Extensions | B35: 3
A36: Average length of each string in Task Extensions | B36: 20
A37: Estimations
A38: Service only size (MB) | B38: =nbServicePerDay*serviceRetention*((500)+((NbServiceExtension*8)+(NbFixedAttrServiceExtension*8)+(NbStrAttrServiceExtension*2*2*AvgStrLengthServiceExtension))) / (1024*1024) -> 14,351
A39: State only size (MB) | B39: =nbServicePerDay*serviceRetention*NbStatePerService*((350)+((NbStateExtension*8*2)+(NbFixedAttrStateExtension*8)+(NbStrAttrStateExtension*2*2*AvgStrLengthStateExtension))) / (1024*1024) -> 36,152
A40: Task only size (MB) | B40: =nbServicePerDay*serviceRetention*NbTaskPerService*((350)+((NbTaskExtension*8*3)+(NbFixedAttrTaskExtension*8)+(NbStrAttrTaskExtension*2*2*AvgStrLengthTaskExtension))) / (1024*1024) -> 73,952
A41: Total CS Size (MB) | B41: =SUM(B38:B40) -> 124,454
A43: Interaction model entries | B43: Number
A44: Average e-mail size (KB) | B44: 25
A45: Average attachment size (KB) | B45: 6
A46: Percentage of e-mails with attachments | B46: 15
A47: Average Auto-reply size (KB) | B47: 10
A48: Number of Contacts | B48: 0
A49: E-mail interactions per day | B49: 100,000
A50: Chat interactions per day | B50: 5,000
A51: UCS database lifetime (days) | B51: 365
A52: Estimations
A53: Total UCS DB Size (MB) | B53: =(((nbEmailPerDay*1024*AvgEmailSize) +(6700+2*AutoReplySize*nbEmailPerDay)+((PercentageOfEmailsWithAttachement*nbEmailPerDay)/100) * (1300+(AttachementSize*1024))+ nbChatPerDay*1024*5)*interactionRetention + nbContact*1024)/(1024*1024) -> 939,591
A55: Total UCS/CS DB Size (MB) | B55: =SUM(B53,B41) -> 1,064,045
A57: Run-time DB Size required (MB) | B57: =totalUCSCS*1.3 -> 1,383,259
